Body Name,Body,Service Division Label,Service Division Code,Organisational Unit,Expenditure Category,Expenditure Code,CIPFA detailed expediture type,CIPFA detailed expediture code,Narrative,Date,Transaction number,Net Amount,Capital and Revenue,Supplier Name,Supplier ID,,
Chorley Borough Council,http://statistics.data.gov.uk/id/local-authority/30UE,Culture & Heritage,1036,GOVN - Policy & Governance,Tools & Equipment - Maintenance,40005,"Equipment, Furniture & Materia",5023,"Cottage Blinds following damage caused during renovation works:, All Banlight Duo FR Vanilla, Cottage Store 135, 120, 95 & 95, Up",09/08/2023,0183530,"1,113.75",Revenue,A B Blinds,17475,,
Chorley Borough Council,http://statistics.data.gov.uk/id/local-authority/30UE,Business Support,1095,GROW - Commercial Services,General Repairs - Reactive,20004,Repairs Maintenance & Alts,5005,Car Park Works at Primrose Gardens Authorised by NAME REDACTED,23/08/2023,0183546,550.00,Revenue,A1 Streamline Road Markings LTD,21544,,
Chorley Borough Council,http://statistics.data.gov.uk/id/local-authority/30UE,Unapportionable Central OHeads,1009,CUST - Customer & Digital,Professional Fees,14011,Direct Employee Expenses,5001,Council Tax Reduction Update Service Support for 2024 scheme,09/08/2023,0183445,500.00,Revenue,ACS Ltd,56512,,
Chorley Borough Council,http://statistics.data.gov.uk/id/local-authority/30UE,Central Support Services,1009,CUST - Customer & Digital,Telephones - Other,40085,Communication and Computing,5028,Adept telecom - June 23,02/08/2023,0182642,"2,034.92",Revenue,Adept Telecom PLC,77452,,
Chorley Borough Council,http://statistics.data.gov.uk/id/local-authority/30UE,Central Support Services,1009,CUST - Customer & Digital,Telephones - Other,40085,Communication and Computing,5028,Adept Telecom - July 23,16/08/2023,0183565,"2,034.92",Revenue,Adept Telecom PLC,77452,,
Chorley Borough Council,http://statistics.data.gov.uk/id/local-authority/30UE,Tourism,1039,GOVN - Policy & Governance,Tools & Equipment - Hire,40004,"Equipment, Furniture & Materia",5023,Fuel for generators,16/08/2023,0183544,"2,070.00",Revenue,Adlington Welding Supplies Ltd,21942,,
Chorley Borough Council,http://statistics.data.gov.uk/id/local-authority/30UE,Tourism,1039,GOVN - Policy & Governance,Tools & Equipment - Hire,40004,"Equipment, Furniture & Materia",5023,"Hire of generators for Chorley Flower Show, , 1 x 65KVA Thursday 20 until Tuesday 1 August, 1 x 45KVA Thursday 20 July to Tuesday",16/08/2023,0183545,"1,304.72",Revenue,Adlington Welding Supplies Ltd,21942,,
Chorley Borough Council,http://statistics.data.gov.uk/id/local-authority/30UE,Service Management & Support,1009,CUST - Customer & Digital,Supplies-Grounds Maintenance,40025,"Equipment, Furniture & Materia",5023,As per Quotation 20257869,02/08/2023,0183058,749.75,Revenue,Aebi Schmidt UK Ltd,17287,,
Chorley Borough Council,http://statistics.data.gov.uk/id/local-authority/30UE,Business Support,1095,GROW - Commercial Services,General Repairs - Reactive,20004,Repairs Maintenance & Alts,5005,"Date of Hire: 01/08/2023, , Hire x1 Day 60 Tonne All-Terrain Mobile Crane - Full Contract Lift",16/08/2023,0183577,"3,251.00",Revenue,Ainscough Crane Hire Limited,89418,,
Chorley Borough Council,http://statistics.data.gov.uk/id/local-authority/30UE,Business Support,1095,GROW - Commercial Services,General Repairs - Reactive,20004,Repairs Maintenance & Alts,5005,"Date of Hire : 17/08/2023, , Hire x1 Day 60 Tonne Mobile Crane - Full Contract Lift",30/08/2023,0184126,"3,251.00",Revenue,Ainscough Crane Hire Limited,89418,,
Chorley Borough Council,http://statistics.data.gov.uk/id/local-authority/30UE,Unapportionable Central OHeads,1009,CUST - Customer & Digital,Bank Charges,40151,Miscellaneous Expenses,5034,post office,09/08/2023,0183441,602.05,Revenue,Allpay Net Ltd,17242,,
Chorley Borough Council,http://statistics.data.gov.uk/id/local-authority/30UE,Central Support Services,1009,EARL - Communities,Impounded Dogs Costs,40207,Miscellaneous Expenses,5034,Annual Stray Dog Provisions,16/08/2023,0183369,515.20,Revenue,Animal Wardens Ltd,80965,,
Chorley Borough Council,http://statistics.data.gov.uk/id/local-authority/30UE,Central Support Services,1009,EARL - Communities,Impounded Dogs Costs,40207,Miscellaneous Expenses,5034,Annual Stray Dog Provisions,16/08/2023,0183383,515.20,Revenue,Animal Wardens Ltd,80965,,
Chorley Borough Council,http://statistics.data.gov.uk/id/local-authority/30UE,Tourism,1039,GOVN - Policy & Governance,Professional Fees,40063,Services,5027,"Chorley Flower Show 2023 , Friday 29 - Sunday 30 July 2023 , Astley Park, Chorley, 600 per day = 1800",09/08/2023,0183594,"1,800.00",Revenue,Anthony Mason,65367,,
Chorley Borough Council,http://statistics.data.gov.uk/id/local-authority/30UE,Central Support Services,1009,GOVN - Policy & Governance,Car Leasing Payment,14100,Direct Employee Expenses,5001,VIN REDACTED: NAME REDACTED - 29.12.22 to 28.12.23,23/08/2023,0183913,"2,913.38",Revenue,Arval UK Ltd,18240,,
Chorley Borough Council,http://statistics.data.gov.uk/id/local-authority/30UE,Central Support Services,1009,EARL - Communities,Children's Activities,40188,Miscellaneous Expenses,5034,Delivery of Chorley Summer HAF Programme 2023 as per grant agreement,09/08/2023,0183351,"3,072.00",Revenue,A-Star Sports,62177,,
Chorley Borough Council,http://statistics.data.gov.uk/id/local-authority/30UE,Service Management & Support,1009,CUST - Customer & Digital,Hire Of Vehicles and Plant,30028,Contrct Hire & Operating Lease,5018,hire of a John Deere 1580 out front mower for 32weeks @ 200 per week. Starting 27th March 2023,30/08/2023,0182830,800.00,Revenue,Balmers Garden Machinery,17075,,
Chorley Borough Council,http://statistics.data.gov.uk/id/local-authority/30UE,Service Management & Support,1009,CUST - Customer & Digital,Hire Of Vehicles and Plant,30028,Contrct Hire & Operating Lease,5018,"As per submission to ITT invitation to Tender for the , contract hire with service and maintenance of , Grounds Maintenance Machi",23/08/2023,0183059,"1,242.40",Revenue,Balmers Garden Machinery,17075,,
Chorley Borough Council,http://statistics.data.gov.uk/id/local-authority/30UE,Service Management & Support,1009,CUST - Customer & Digital,Hire Of Vehicles and Plant,30028,Contrct Hire & Operating Lease,5018,hire of a John Deere 1580 out front mower for 32weeks @ 200 per week. Starting 27th March 2023,30/08/2023,0183898,800.00,Revenue,Balmers Garden Machinery,17075,,
Chorley Borough Council,http://statistics.data.gov.uk/id/local-authority/30UE,Service Management & Support,1009,CUST - Customer & Digital,Hire Of Vehicles and Plant,30028,Contrct Hire & Operating Lease,5018,"As per submission to ITT invitation to Tender for the , contract hire with service and maintenance of , Grounds Maintenance Machi",30/08/2023,0183899,"1,242.40",Revenue,Balmers Garden Machinery,17075,,
Chorley Borough Council,http://statistics.data.gov.uk/id/local-authority/30UE,Control Accounts,Control,GOVN - Policy & Governance,General Balances,00100,Balance Sheet,Balance,,02/08/2023,0181674,"3,324.63",Revenue,Barclaycard Commercial,59848,,
Chorley Borough Council,http://statistics.data.gov.uk/id/local-authority/30UE,Control Accounts,Control,GOVN - Policy & Governance,General Balances,00100,Balance Sheet,Balance,,02/08/2023,0182849,"3,994.66",Revenue,Barclaycard Commercial,59848,,
Chorley Borough Council,http://statistics.data.gov.uk/id/local-authority/30UE,Corporate Management,1008,GOVN - Policy & Governance,Bank Charges,40151,Miscellaneous Expenses,5034,Credit card DD Charges,02/08/2023,0181598,"3,471.54",Revenue,Barclaycard Merchant Services,61601,,
Chorley Borough Council,http://statistics.data.gov.uk/id/local-authority/30UE,Corporate Management,1008,GOVN - Policy & Governance,Bank Charges,40151,Miscellaneous Expenses,5034,DD Credit card charges,02/08/2023,0181600,"2,074.16",Revenue,Barclaycard Merchant Services,61601,,
Chorley Borough Council,http://statistics.data.gov.uk/id/local-authority/30UE,Corporate Management,1008,GOVN - Policy & Governance,Bank Charges,40151,Miscellaneous Expenses,5034,30th Jun 23,02/08/2023,0182677,"2,190.23",Revenue,Barclaycard Merchant Services,61601,,
Chorley Borough Council,http://statistics.data.gov.uk/id/local-authority/30UE,Corporate Management,1008,GOVN - Policy & Governance,Bank Charges,40151,Miscellaneous Expenses,5034,,02/08/2023,0182679,"2,942.55",Revenue,Barclaycard Merchant Services,61601,,
Chorley Borough Council,http://statistics.data.gov.uk/id/local-authority/30UE,Culture & Heritage,1036,GOVN - Policy & Governance,Publicity - Advertising,40157,Miscellaneous Expenses,5034,"Astley Hall Radio Promotion, , GHR Lancashire & Wigan Summer Partnership, 5x 10s tags production included , 7 week campaign, 294 ",09/08/2023,0182423,905.14,Revenue,Bauer Active Ltd,50574,,
Chorley Borough Council,http://statistics.data.gov.uk/id/local-authority/30UE,Culture & Heritage,1036,GOVN - Policy & Governance,Publicity - Advertising,40157,Miscellaneous Expenses,5034,Astley Hall Radio PromotionGHR Lancashire & Wigan Summer Partnership5x 10s tags production included 7 week campaign294 x 10s cred,30/08/2023,0183514,"1,168.86",Revenue,Bauer Active Ltd,50574,,
Chorley Borough Council,http://statistics.data.gov.uk/id/local-authority/30UE,Unapportionable Central OHeads,1009,GROW - Commercial Services,General Repairs - Reactive,20004,Repairs Maintenance & Alts,5005,"Site walk-over and preparation of a surface water flood risk mitigation report at Crawford Avenue, Lower Adlington",16/08/2023,0183385,"1,425.00",Revenue,Betts Hydro Ltd,89426,,
Chorley Borough Council,http://statistics.data.gov.uk/id/local-authority/30UE,Central Support Services,1009,EARL - Communities,Children's Activities,40188,Miscellaneous Expenses,5034,Delivery of Chorley HAF Programme Summer 23 as per grant agreement,16/08/2023,0183676,"1,536.00",Revenue,Billington Bears Preschool Limited,89349,,
Chorley Borough Council,http://statistics.data.gov.uk/id/local-authority/30UE,Control Accounts,Control,GROW - Commercial Services,Manual Control Account,00001,Balance Sheet,Balance,,23/08/2023,0183915,"3,141.01",Revenue,Brick Technology Limited,89442,,
Chorley Borough Council,http://statistics.data.gov.uk/id/local-authority/30UE,Tourism,1039,GOVN - Policy & Governance,Professional Fees,40063,Services,5027,CFS Prize money,23/08/2023,0184005,550.00,Revenue,Brighter Blooms,71496,,
Chorley Borough Council,http://statistics.data.gov.uk/id/local-authority/30UE,Economic Development,1096,GROW - Commercial Services,Electricity,20013,Energy Costs,5006,20/5 to 8/7/23,02/08/2023,0183316,"6,487.65",Revenue,British Gas Business,22242,,
Chorley Borough Council,http://statistics.data.gov.uk/id/local-authority/30UE,Economic Development,1096,GROW - Commercial Services,Electricity,20013,Energy Costs,5006,Market Ground Office,09/08/2023,0183605,"1,358.82",Revenue,British Gas Business,22242,,
Chorley Borough Council,http://statistics.data.gov.uk/id/local-authority/30UE,Central Support Services,1009,CUST - Customer & Digital,Telephones - Other,40085,Communication and Computing,5028,ADDRESS REDACTED,02/08/2023,0183321,"5,669.65",Revenue,British Telecommunications Plc,17131,,
Chorley Borough Council,http://statistics.data.gov.uk/id/local-authority/30UE,Business Support,1095,GROW - Commercial Services,General Repairs - Reactive,20004,Repairs Maintenance & Alts,5005,Strawberry Fields Reactive General Building Repair Works,09/08/2023,0182975,"1,761.99",Revenue,Bryan Lee Building Contractors Ltd,78160,,
Chorley Borough Council,http://statistics.data.gov.uk/id/local-authority/30UE,Unapportionable Central OHeads,1009,GROW - Commercial Services,General Repairs - Reactive,20004,Repairs Maintenance & Alts,5005,Town Hall Reactive General Building Repair Works,02/08/2023,0183022,505.00,Revenue,Bryan Lee Building Contractors Ltd,78160,,
Chorley Borough Council,http://statistics.data.gov.uk/id/local-authority/30UE,Unapportionable Central OHeads,1009,GROW - Commercial Services,General Repairs - Reactive,20004,Repairs Maintenance & Alts,5005,CBC Community Centres Reactive General Building Repair Works,02/08/2023,0183027,"1,142.11",Revenue,Bryan Lee Building Contractors Ltd,78160,,
Chorley Borough Council,http://statistics.data.gov.uk/id/local-authority/30UE,Unapportionable Central OHeads,1009,GROW - Commercial Services,General Repairs - Reactive,20004,Repairs Maintenance & Alts,5005,CBC Housing Reactive General Building Repair Works,02/08/2023,0183063,628.11,Revenue,Bryan Lee Building Contractors Ltd,78160,,
Chorley Borough Council,http://statistics.data.gov.uk/id/local-authority/30UE,Unapportionable Central OHeads,1009,GROW - Commercial Services,General Repairs - Reactive,20004,Repairs Maintenance & Alts,5005,CBC Commercial Properties Reactive General Building Repair Works,23/08/2023,0183068,"2,598.33",Revenue,Bryan Lee Building Contractors Ltd,78160,,
Chorley Borough Council,http://statistics.data.gov.uk/id/local-authority/30UE,Unapportionable Central OHeads,1009,GROW - Commercial Services,General Repairs - Reactive,20004,Repairs Maintenance & Alts,5005,CBC Commercial Properties Reactive General Building Repair Works,02/08/2023,0183069,"2,373.22",Revenue,Bryan Lee Building Contractors Ltd,78160,,
Chorley Borough Council,http://statistics.data.gov.uk/id/local-authority/30UE,Unapportionable Central OHeads,1009,GROW - Commercial Services,General Repairs - Reactive,20004,Repairs Maintenance & Alts,5005,Town Hall Reactive General Building Repair Works,09/08/2023,0183073,987.44,Revenue,Bryan Lee Building Contractors Ltd,78160,,
Chorley Borough Council,http://statistics.data.gov.uk/id/local-authority/30UE,Unapportionable Central OHeads,1009,GROW - Commercial Services,General Repairs - Reactive,20004,Repairs Maintenance & Alts,5005,Town Hall Reactive General Building Repair Works,23/08/2023,0183465,657.64,Revenue,Bryan Lee Building Contractors Ltd,78160,,
Chorley Borough Council,http://statistics.data.gov.uk/id/local-authority/30UE,Business Support,1095,GROW - Commercial Services,General Repairs - Reactive,20004,Repairs Maintenance & Alts,5005,"Strawberry Fields Reactive General , Building Repair Works",16/08/2023,0183466,675.19,Revenue,Bryan Lee Building Contractors Ltd,78160,,
Chorley Borough Council,http://statistics.data.gov.uk/id/local-authority/30UE,Business Support,1095,GROW - Commercial Services,General Repairs - Reactive,20004,Repairs Maintenance & Alts,5005,Primrose Gardens Reactive General Building Repair Works,16/08/2023,0183477,522.25,Revenue,Bryan Lee Building Contractors Ltd,78160,,
Chorley Borough Council,http://statistics.data.gov.uk/id/local-authority/30UE,Unapportionable Central OHeads,1009,GROW - Commercial Services,General Repairs - Reactive,20004,Repairs Maintenance & Alts,5005,Astley Hall & Buildings Reactive General Building Repair Works,23/08/2023,0183733,"1,346.54",Revenue,Bryan Lee Building Contractors Ltd,78160,,
Chorley Borough Council,http://statistics.data.gov.uk/id/local-authority/30UE,Business Support,1095,GROW - Commercial Services,General Repairs - Reactive,20004,Repairs Maintenance & Alts,5005,Market Walk Extension Reactive General Building Repair Works,23/08/2023,0183846,680.82,Revenue,Bryan Lee Building Contractors Ltd,78160,,
Chorley Borough Council,http://statistics.data.gov.uk/id/local-authority/30UE,Unapportionable Central OHeads,1009,GROW - Commercial Services,General Repairs - Reactive,20004,Repairs Maintenance & Alts,5005,CBC Parks Reactive General Building Repair Works,23/08/2023,0183847,"1,639.28",Revenue,Bryan Lee Building Contractors Ltd,78160,,
Chorley Borough Council,http://statistics.data.gov.uk/id/local-authority/30UE,Central Support Services,1009,PLAN - Planning & Development,Misc Expenses,40200,Miscellaneous Expenses,5034,"Installation of Lectern Sign at Lych Gate, Heath Charnock, in accordance with quotation dated 15th June 2023.",23/08/2023,0184112,618.70,Revenue,Bryan Lee Building Contractors Ltd,78160,,
Chorley Borough Council,http://statistics.data.gov.uk/id/local-authority/30UE,Unapportionable Central OHeads,1009,CUST - Customer & Digital,Agency Staff,13000,Direct Employee Expenses,5001,Temporary staff for benefit work,30/08/2023,0184178,"2,652.00",Revenue,Business Smart Solutions Ltd,88577,,
Chorley Borough Council,http://statistics.data.gov.uk/id/local-authority/30UE,Service Management & Support,1009,CUST - Customer & Digital,Vehicles and Plant Maintenance,30045,Direct Transport Costs,5016,AS per WIP No 34180,30/08/2023,0183618,612.05,Revenue,C P Davidson & Sons Ltd,21093,,
Chorley Borough Council,http://statistics.data.gov.uk/id/local-authority/30UE,Open Spaces,1038,CUST - Customer & Digital,Supplies-Grounds Maintenance,40025,"Equipment, Furniture & Materia",5023,Supply a buffet lunch for the In Bloom Judging. Set out under cover in the Garden of Reflection,09/08/2023,0183232,716.80,Revenue,Cafe Ambio,22328,,
Chorley Borough Council,http://statistics.data.gov.uk/id/local-authority/30UE,Homelessness,1075,EARL - Communities,Furniture - Purchase,40012,"Equipment, Furniture & Materia",5023,To the furnishing of ADDRESS REDACTED (see attached for full breakdown) Various new items 1 1750.20 Various reuse it,09/08/2023,0183386,"1,980.20",Revenue,Calico Enterprise,73338,,
Chorley Borough Council,http://statistics.data.gov.uk/id/local-authority/30UE,Homelessness,1075,EARL - Communities,Furniture - Purchase,40012,"Equipment, Furniture & Materia",5023,Zero VAT,09/08/2023,0183386,875.00,Revenue,Calico Enterprise,73338,,
Chorley Borough Council,http://statistics.data.gov.uk/id/local-authority/30UE,Homelessness,1075,EARL - Communities,Furniture - Purchase,40012,"Equipment, Furniture & Materia",5023,To the furnishing of ADDRESS REDACTED,09/08/2023,0183527,"1,737.39",Revenue,Calico Enterprise,73338,,
Chorley Borough Council,http://statistics.data.gov.uk/id/local-authority/30UE,Central Support Services,1009,CUST - Customer & Digital,ICT Software Implementation,40114,Communication and Computing,5028,"Annual Licence and Support Fee, Chorley Borough Council, 10 x Alloy Mobile User, Invoice Covers 30 Sep 2023 to 29 Sep 2024, PO PR",02/08/2023,0183306,"3,050.00",Revenue,Causeway Technologies Limited,77916,,
Chorley Borough Council,http://statistics.data.gov.uk/id/local-authority/30UE,Service Management & Support,1009,CUST - Customer & Digital,Vehicles and Plant Maintenance,30045,Direct Transport Costs,5016,"As per Invoice 7916, Repairs to VIN REDACTED",02/08/2023,0182698,"4,715.35",Revenue,Central Bodyshop Ltd,19511,,
Chorley Borough Council,http://statistics.data.gov.uk/id/local-authority/30UE,Business Support,1095,GROW - Commercial Services,Salting & Gritting,20059,Grounds Maintenance Costs,5013,"Seasonal Winter Gritting service for Market Walk Shopping Centre, service yards, public walkways and car park as discussed , Quot",02/08/2023,0183038,575.88,Revenue,Chameleon Facilities Limited,78464,,
Chorley Borough Council,http://statistics.data.gov.uk/id/local-authority/30UE,Tourism,1039,GOVN - Policy & Governance,Tools & Equipment - Hire,40004,"Equipment, Furniture & Materia",5023,"6` x 2` 3`` Trestle Table 380 5.00 1,900.00, Patio Tables White 75 5.00 375.00, Bistro Chairs 300 1.75 525.00, Samsonite Chairs 1",02/08/2023,0183214,"4,002.50",Revenue,Childwall table and chair hire,77086,,
Chorley Borough Council,http://statistics.data.gov.uk/id/local-authority/30UE,Parking Services,1066,GROW - Commercial Services,External Contractors,50008,Private Contractors,5042,"Processing 075, , Processing 076, , Processing 077, , Processing 079, , Processing 080, , Processing 085, , Processing 086, , MIP",23/08/2023,0183551,832.32,Revenue,Chipside Ltd,22063,,
Chorley Borough Council,http://statistics.data.gov.uk/id/local-authority/30UE,Tourism,1039,GOVN - Policy & Governance,Misc Expenses,40200,Miscellaneous Expenses,5034,Donation to society in lieu of assistance at chorlet flower show,09/08/2023,0183596,560.00,Revenue,Chorley & District Gardening Society,21287,,
Chorley Borough Council,http://statistics.data.gov.uk/id/local-authority/30UE,Economic Development,1096,GROW - Commercial Services,Grants To Other Organisations,40127,Grants and Subscriptions,5031,Large core funding contract to supply Shopmobility service 01.04.23 - 31.03.24,23/08/2023,0183644,"18,800.00",Revenue,Chorley & South Ribble Shopmobility,18403,,
Chorley Borough Council,http://statistics.data.gov.uk/id/local-authority/30UE,Regulatory Services,1048,PLAN - Planning & Development,Taxi Testing & Vehicle Safety Report,40234,Services,5027,MOT`s,16/08/2023,0183601,932.45,Revenue,Chorley Autocare Ltd,17110,,
Chorley Borough Council,http://statistics.data.gov.uk/id/local-authority/30UE,Central Support Services,1009,EARL - Communities,Misc Expenses,40200,Miscellaneous Expenses,5034,Adult health and wellbeing grant,30/08/2023,0184196,634.00,Revenue,Chorley Inferno Netball,66518,,
Chorley Borough Council,http://statistics.data.gov.uk/id/local-authority/30UE,Democratic Represent and  Mgnt,1007,GOVN - Policy & Governance,Other Contributions,40145,Grants and Subscriptions,5031,charity donation,23/08/2023,0183765,"2,000.00",Revenue,Chorley Womens Centre,17036,,
Chorley Borough Council,http://statistics.data.gov.uk/id/local-authority/30UE,Democratic Represent and  Mgnt,1007,GOVN - Policy & Governance,Other Contributions,40145,Grants and Subscriptions,5031,charity donation,23/08/2023,0183766,"2,000.00",Revenue,Chorley Youth Zone,77339,,
Chorley Borough Council,http://statistics.data.gov.uk/id/local-authority/30UE,Corporate Management,1008,EARL - Communities,Other Contributions,40145,Grants and Subscriptions,5031,"HSF 4 - Early payment due to increased demand., 2rd of 3 payments",23/08/2023,0183991,"36,500.00",Revenue,Citizens Advice Lancashire,17035,,
Chorley Borough Council,http://statistics.data.gov.uk/id/local-authority/30UE,Unapportionable Central OHeads,1009,GOVN - Policy & Governance,Computer Software-Additional,40102,Communication and Computing,5028,"Chorley Kofax changes - 2 annual call off days to be used in addition to this PO, , Civica Ref; FIN_230626_267_SS_1, , 1.	Would i",30/08/2023,0184102,"2,700.00",Revenue,Civica UK Limited,17463,,
Chorley Borough Council,http://statistics.data.gov.uk/id/local-authority/30UE,Homelessness,1075,EARL - Communities,Grants - Tenant Participation,40142,Grants and Subscriptions,5031,,16/08/2023,0183789,500.00,Revenue,Claire Pilkington,85424,,
Chorley Borough Council,http://statistics.data.gov.uk/id/local-authority/30UE,Central Support Services,1009,EARL - Communities,Misc Expenses,40200,Miscellaneous Expenses,5034,Adult health and wellbeing grant,30/08/2023,0184197,650.00,Revenue,Clayton Brook Residents Group,78021,,
Chorley Borough Council,http://statistics.data.gov.uk/id/local-authority/30UE,Capital,Capital,PLAN - Planning & Development,Main Contractor,03007,Capital Expenditure,Capital,"Playing Pitch Improvements at Wigan Lane Playing Field, Chorley",09/08/2023,0183265,"6,172.08",Capital,Cleveland Land Services (Guisborough) Limited,83953,,
Chorley Borough Council,http://statistics.data.gov.uk/id/local-authority/30UE,Development Control,1091,PLAN - Planning & Development,Professional Fees,40063,Services,5027,"Appeal PINS ref APP/D2320/W/22/3313413 - Award of Costs to Conlon Holdings Ltd for, Land 120M East Of 27 Charter Lane Charnock Ri",02/08/2023,0183354,"48,296.00",Revenue,Conlon Holdings Ltd,89383,,
Chorley Borough Council,http://statistics.data.gov.uk/id/local-authority/30UE,Central Support Services,1009,CUST - Customer & Digital,Items For Resale,40027,"Equipment, Furniture & Materia",5023,"Grey 240L wheeled bins, with RIFD chipped and Chorley logo. Quantity = 540",02/08/2023,0182928,"10,832.40",Revenue,Contenur Uk Ltd,82451,,
Chorley Borough Council,http://statistics.data.gov.uk/id/local-authority/30UE,Central Support Services,1009,CUST - Customer & Digital,Items For Resale,40027,"Equipment, Furniture & Materia",5023,"Blue 240L wheeled bins, with Chorley logo. , Quantity= 540",09/08/2023,0183273,"10,584.00",Revenue,Contenur Uk Ltd,82451,,
Chorley Borough Council,http://statistics.data.gov.uk/id/local-authority/30UE,Central Support Services,1009,CUST - Customer & Digital,Items For Resale,40027,"Equipment, Furniture & Materia",5023,"Green 140L wheeled bins, with Chorley logo Quantity = 140.",09/08/2023,0183388,"2,377.20",Revenue,Contenur Uk Ltd,82451,,
Chorley Borough Council,http://statistics.data.gov.uk/id/local-authority/30UE,Culture & Heritage,1036,GOVN - Policy & Governance,Souvenirs,40033,"Equipment, Furniture & Materia",5023,"Product	 Code	 Qty	 Unit Price	 Total	 design, NAME REDACTED	 6643	 96	 6.43	 617.28	 Astley Hall logo, Fridge Magnets	4988	 500",02/08/2023,0183215,630.00,Revenue,Cornflower Ltd,80936,,
Chorley Borough Council,http://statistics.data.gov.uk/id/local-authority/30UE,Culture & Heritage,1036,GOVN - Policy & Governance,Souvenirs,40033,"Equipment, Furniture & Materia",5023,"Product	 Code	 Qty	 Unit Price	 Total	 design, NAME REDACTED	 6643	 96	 6.43	 617.28	 Astley Hall logo, Fridge Magnets	4988	 500",30/08/2023,0183358,"1,035.00",Revenue,Cornflower Ltd,80936,,
Chorley Borough Council,http://statistics.data.gov.uk/id/local-authority/30UE,Recreation & Sport,1037,GROW - Commercial Services,Gas,20014,Energy Costs,5006,Clayton brook village hall,09/08/2023,0183522,540.35,Revenue,Corona Energy Retail 2 Ltd,67249,,
Chorley Borough Council,http://statistics.data.gov.uk/id/local-authority/30UE,Recreation & Sport,1037,GROW - Commercial Services,Gas,20014,Energy Costs,5006,Lodge bank,16/08/2023,0183694,"8,786.62",Revenue,Corona Energy Retail 2 Ltd,67249,,
Chorley Borough Council,http://statistics.data.gov.uk/id/local-authority/30UE,Central Support Services,1009,GROW - Commercial Services,Gas,20014,Energy Costs,5006,Civic offices,16/08/2023,0183696,"1,067.90",Revenue,Corona Energy Retail 2 Ltd,67249,,
Chorley Borough Council,http://statistics.data.gov.uk/id/local-authority/30UE,Homelessness,1075,GROW - Commercial Services,Gas,20014,Energy Costs,5006,Cotswold house,16/08/2023,0183697,"1,447.45",Revenue,Corona Energy Retail 2 Ltd,67249,,
Chorley Borough Council,http://statistics.data.gov.uk/id/local-authority/30UE,Democratic Represent and  Mgnt,1007,GROW - Commercial Services,Gas,20014,Energy Costs,5006,Astley Coach house,16/08/2023,0183699,587.54,Revenue,Corona Energy Retail 2 Ltd,67249,,
Chorley Borough Council,http://statistics.data.gov.uk/id/local-authority/30UE,Central Support Services,1009,GROW - Commercial Services,Gas,20014,Energy Costs,5006,Westway,16/08/2023,0183701,515.22,Revenue,Corona Energy Retail 2 Ltd,67249,,
Chorley Borough Council,http://statistics.data.gov.uk/id/local-authority/30UE,Democratic Represent and  Mgnt,1007,GROW - Commercial Services,Gas,20014,Energy Costs,5006,Water Street,16/08/2023,0183703,"28,876.65",Revenue,Corona Energy Retail 2 Ltd,67249,,
Chorley Borough Council,http://statistics.data.gov.uk/id/local-authority/30UE,Democratic Represent and  Mgnt,1007,GROW - Commercial Services,Gas,20014,Energy Costs,5006,Astley Hall,16/08/2023,0183704,565.52,Revenue,Corona Energy Retail 2 Ltd,67249,,
Chorley Borough Council,http://statistics.data.gov.uk/id/local-authority/30UE,Recreation & Sport,1037,GROW - Commercial Services,Gas,20014,Energy Costs,5006,Clayton Brook,16/08/2023,0183706,585.28,Revenue,Corona Energy Retail 2 Ltd,67249,,
Chorley Borough Council,http://statistics.data.gov.uk/id/local-authority/30UE,Recreation & Sport,1037,GROW - Commercial Services,Gas,20014,Energy Costs,5006,Centre Drive,16/08/2023,0183709,"2,669.86",Revenue,Corona Energy Retail 2 Ltd,67249,,
Chorley Borough Council,http://statistics.data.gov.uk/id/local-authority/30UE,Business Support,1095,GROW - Commercial Services,Gas,20014,Energy Costs,5006,Fleet street,16/08/2023,0183710,"6,064.92",Revenue,Corona Energy Retail 2 Ltd,67249,,
Chorley Borough Council,http://statistics.data.gov.uk/id/local-authority/30UE,Central Support Services,1009,EARL - Communities,Bailiffs' Fees,40071,Services,5027,"All Seasons Leisure centre, ADDRESS REDACTED",16/08/2023,0183721,"1,550.00",Revenue,COURT ENFORCEMENT SPECIALISTS LTD,77924,,
Chorley Borough Council,http://statistics.data.gov.uk/id/local-authority/30UE,Other Short Term Debtors,,GOVN - Policy & Governance,Other Debtors,00098,Balance Sheet,Balance,Cyclescheme for SA - Invoice No W705575,16/08/2023,0183664,"4,224.16",Revenue,Cyclescheme Ltd,78414,,
Chorley Borough Council,http://statistics.data.gov.uk/id/local-authority/30UE,Homelessness,1075,EARL - Communities,Grants - Tenant Participation,40142,Grants and Subscriptions,5031,,23/08/2023,0183871,500.00,Revenue,Daniel McKeown-Henshall,85588,,
Chorley Borough Council,http://statistics.data.gov.uk/id/local-authority/30UE,Central Support Services,1009,CUST - Customer & Digital,Computer Equipment-Maintenance,40105,Communication and Computing,5028,Data centre cleaning service,23/08/2023,0183970,"1,750.00",Revenue,Data Centre UK,85504,,
Chorley Borough Council,http://statistics.data.gov.uk/id/local-authority/30UE,Planning Policy,1092,PLAN - Planning & Development,General Subscriptions,40146,Grants and Subscriptions,5031,Citizen Space annual subscription renewal 2023/2024,16/08/2023,0183082,"9,995.00",Revenue,DELIB LTD,78121,,
Chorley Borough Council,http://statistics.data.gov.uk/id/local-authority/30UE,Central Support Services,1009,CUST - Customer & Digital,Computer Equipment-Purchase,40098,Communication and Computing,5028,"5 x Dell Latitude 3440, BTX Laptops",02/08/2023,0182613,"2,744.70",Revenue,Dell Corporation Ltd,64387,,
Chorley Borough Council,http://statistics.data.gov.uk/id/local-authority/30UE,Democratic Represent and  Mgnt,1007,GOVN - Policy & Governance,Other Contributions,40145,Grants and Subscriptions,5031,charity donation,23/08/2023,0183767,"2,377.07",Revenue,Derian House Childrens` Hospice,18881,,
Chorley Borough Council,http://statistics.data.gov.uk/id/local-authority/30UE,Culture & Heritage,1036,GOVN - Policy & Governance,Training Course Fees,17010,Indirect Employee Expenses,5002,17 students for Emergency First Aid at Work training at Astley Hall. Training conducted in August 2023. 50 per student,30/08/2023,0184245,850.00,Revenue,DGF First Aid Training,72087,,
Chorley Borough Council,http://statistics.data.gov.uk/id/local-authority/30UE,Central Support Services,1009,GOVN - Policy & Governance,External Contractor,40198,Miscellaneous Expenses,5034,"20 x OC97FDA Orthopaedica chair with fold down height adjustable multi functional armpads and pump up lumbar (black), , Delivery ",30/08/2023,0183571,"5,448.60",Revenue,Diamond Business Interiors Ltd,53722,,
Chorley Borough Council,http://statistics.data.gov.uk/id/local-authority/30UE,Homelessness,1075,GROW - Commercial Services,Furniture - Purchase,40012,"Equipment, Furniture & Materia",5023,"please supply 3 x Computer desk Chairs, Product number OC97FDA",30/08/2023,0184132,872.43,Revenue,Diamond Business Interiors Ltd,53722,,
Chorley Borough Council,http://statistics.data.gov.uk/id/local-authority/30UE,Democratic Represent and  Mgnt,1007,GOVN - Policy & Governance,General Subscriptions,40146,Grants and Subscriptions,5031,District Council Network Membership 2023-2024,02/08/2023,0183274,"3,278.00",Revenue,District Councils Network,58156,,
Chorley Borough Council,http://statistics.data.gov.uk/id/local-authority/30UE,Planning Policy,1092,PLAN - Planning & Development,Consultants` Fees,40077,Services,5027,Consultancy support in relation to neighbourhood planning pilot study.,09/08/2023,0179653,"9,450.00",Revenue,Edward Taylor,87071,,
Chorley Borough Council,http://statistics.data.gov.uk/id/local-authority/30UE,Planning Policy,1092,PLAN - Planning & Development,Consultants` Fees,40077,Services,5027,Consultancy support in relation to neighbourhood planning pilot study.,09/08/2023,0179654,"8,137.50",Revenue,Edward Taylor,87071,,
Chorley Borough Council,http://statistics.data.gov.uk/id/local-authority/30UE,Parking Services,1066,GROW - Commercial Services,Fixtures & Fittings - Repair/Mtnce,20028,Fixtures and Fittings,5010,"Re: West St car park height barriers, To make alterations to the 2 no height barriers, The price to raise the swing arms 135mm wi",23/08/2023,0183392,"1,250.00",Revenue,Edwards Wrought Iron Ltd,77654,,
Chorley Borough Council,http://statistics.data.gov.uk/id/local-authority/30UE,Tourism,1039,GOVN - Policy & Governance,Professional Fees,40063,Services,5027,hire of field fo park & ride,09/08/2023,0183413,500.00,Revenue,Edwin Schofield,77436,,
Chorley Borough Council,http://statistics.data.gov.uk/id/local-authority/30UE,Central Support Services,1009,CUST - Customer & Digital,Mobile Voice and Data,40086,Communication and Computing,5028,,02/08/2023,0183295,"9,238.85",Revenue,EE - Orange,16486,,
Chorley Borough Council,http://statistics.data.gov.uk/id/local-authority/30UE,Central Support Services,1009,CUST - Customer & Digital,Mobile Voice and Data,40086,Communication and Computing,5028,Mobile phones,16/08/2023,0183738,"9,255.33",Revenue,EE - Orange,16486,,
Chorley Borough Council,http://statistics.data.gov.uk/id/local-authority/30UE,Homelessness,1075,GROW - Commercial Services,Laundry,40042,"Clothing, Uniforms and Laundry",5025,"In respect of Laundry services for period , 01/04/23 - 31/03/2024, For , Cotswold Supported housing, Cotswold Rd , Chorley",23/08/2023,0183418,"1,287.57",Revenue,Elis UK Ltd,20799,,
Chorley Borough Council,http://statistics.data.gov.uk/id/local-authority/30UE,Business Support,1095,GROW - Commercial Services,Internet Charges,40104,Communication and Computing,5028,"Operate, Platform and Calls & IP invoices for financial year April 2023 to March 2024",09/08/2023,0183055,"2,950.00",Revenue,Essensys Ltd,77836,,
Chorley Borough Council,http://statistics.data.gov.uk/id/local-authority/30UE,Business Support,1095,GROW - Commercial Services,Internet Charges,40104,Communication and Computing,5028,"Operate, Platform and Calls & IP invoices for financial year April 2023 to March 2024",09/08/2023,0183506,"2,450.00",Revenue,Essensys Ltd,77836,,
Chorley Borough Council,http://statistics.data.gov.uk/id/local-authority/30UE,Business Support,1095,GROW - Commercial Services,Internet Charges,40104,Communication and Computing,5028,"Operate, Platform and Calls & IP invoices for financial year April 2023 to March 2024",09/08/2023,0183507,"2,450.00",Revenue,Essensys Ltd,77836,,
Chorley Borough Council,http://statistics.data.gov.uk/id/local-authority/30UE,Open Spaces,1038,CUST - Customer & Digital,Supplies-Grounds Maintenance,40025,"Equipment, Furniture & Materia",5023,Supply 50 Buxus & 4 hanging baskets,09/08/2023,0183275,680.00,Revenue,Everglades Nurseries Ltd,20202,,
Chorley Borough Council,http://statistics.data.gov.uk/id/local-authority/30UE,Service Management & Support,1009,CUST - Customer & Digital,Hire Of Vehicles and Plant,30028,Contrct Hire & Operating Lease,5018,"1 x triple rental per week at 375, 1x front deck rental per week at 295 , Total of 30 weeks rental",09/08/2023,0182929,"2,814.00",Revenue,F R Sharrock Ltd,18091,,
Chorley Borough Council,http://statistics.data.gov.uk/id/local-authority/30UE,Service Management & Support,1009,CUST - Customer & Digital,Vehicles and Plant Maintenance,30045,Direct Transport Costs,5016,"As per Pro-Forma No 114692, Repairs to NAME REDACTED",16/08/2023,0183724,"1,937.01",Revenue,F R Sharrock Ltd,18091,,
Chorley Borough Council,http://statistics.data.gov.uk/id/local-authority/30UE,Service Management & Support,1009,CUST - Customer & Digital,Hire Of Vehicles and Plant,30028,Contrct Hire & Operating Lease,5018,"1 x triple rental per week at 375, 1x front deck rental per week at 295 , Total of 30 weeks rental",30/08/2023,0183901,"3,082.00",Revenue,F R Sharrock Ltd,18091,,
Chorley Borough Council,http://statistics.data.gov.uk/id/local-authority/30UE,Service Management & Support,1009,CUST - Customer & Digital,Vehicles and Plant Maintenance,30045,Direct Transport Costs,5016,"VIN REDACTED Repair, New motor",30/08/2023,0184277,"1,341.23",Revenue,F R Sharrock Ltd,18091,,
Chorley Borough Council,http://statistics.data.gov.uk/id/local-authority/30UE,Service Management & Support,1009,CUST - Customer & Digital,External Contractor,40198,Miscellaneous Expenses,5034,"Supply & install 826m of stock netting and 2 strands of barbed wire, Works will be phased as agreed with NAME REDACTED",09/08/2023,0182866,"3,485.00",Revenue,Fence and Drain Ltd,89295,,
Chorley Borough Council,http://statistics.data.gov.uk/id/local-authority/30UE,Capital,Capital,GOVN - Policy & Governance,Other Capital Related Fees,03024,Capital Expenditure,Capital,Purchase monies,02/08/2023,0181961,"134,995.00",Capital,Fiona Marie Smith,88812,,
Chorley Borough Council,http://statistics.data.gov.uk/id/local-authority/30UE,Tourism,1039,GOVN - Policy & Governance,Tools & Equipment - Hire,40004,"Equipment, Furniture & Materia",5023,"Pontoon Bridge Build, Hire and Dismantle for Chorley Flower Show 2023, , Our quotation is based on the hire of the following size",09/08/2023,0182806,"3,995.00",Revenue,Floating Pontoon Solutions Ltd,77486,,
Chorley Borough Council,http://statistics.data.gov.uk/id/local-authority/30UE,Homelessness,1075,EARL - Communities,Grants - Tenant Participation,40142,Grants and Subscriptions,5031,,16/08/2023,0183790,500.00,Revenue,Francis Marsden,85643,,
Chorley Borough Council,http://statistics.data.gov.uk/id/local-authority/30UE,Building Control,1090,PLAN - Planning & Development,Professional Fees,40063,Services,5027,Contracter fees for NAME REDACTED commencing 11.07.2023 for 6 months,02/08/2023,0183276,"2,400.00",Revenue,Fraser Building Management Services Limited,89405,,
Chorley Borough Council,http://statistics.data.gov.uk/id/local-authority/30UE,Building Control,1090,PLAN - Planning & Development,Professional Fees,40063,Services,5027,Contracter fees for NAME REDACTED commencing 11.07.2023 for 6 months,16/08/2023,0183512,"2,400.00",Revenue,Fraser Building Management Services Limited,89405,,
Chorley Borough Council,http://statistics.data.gov.uk/id/local-authority/30UE,Service Management & Support,1009,CUST - Customer & Digital,Freight Transport Assoc Fees,40150,Grants and Subscriptions,5031,"As per Order number- REN-101303, Membership Review for Chorley Borough Council member no. 9055",09/08/2023,0183360,"1,050.00",Revenue,Freight Transport Assoc Ltd,16333,,
Chorley Borough Council,http://statistics.data.gov.uk/id/local-authority/30UE,Central Support Services,1009,EARL - Communities,Misc Expenses,40200,Miscellaneous Expenses,5034,Adult health and wellbeing grant,30/08/2023,0184198,650.00,Revenue,Friends of Adlington Library,76734,,
Chorley Borough Council,http://statistics.data.gov.uk/id/local-authority/30UE,Homelessness,1075,GROW - Commercial Services,Furniture - Purchase,40012,"Equipment, Furniture & Materia",5023,"1 X BED BASE, 1 X MATTRESS, 5 X DINING ROOM CHAIRS",02/08/2023,0183091,669.47,Revenue,Furniture Resource Centre Ltd,22085,,
Chorley Borough Council,http://statistics.data.gov.uk/id/local-authority/30UE,Homelessness,1075,GROW - Commercial Services,Furniture - Purchase,40012,"Equipment, Furniture & Materia",5023,"3 x bed bases @ 223.30 each, 3 x mattresses @ 114.69",30/08/2023,0183990,669.90,Revenue,Furniture Resource Centre Ltd,22085,,
Chorley Borough Council,http://statistics.data.gov.uk/id/local-authority/30UE,Central Support Services,1009,EARL - Communities,Children's Activities,40188,Miscellaneous Expenses,5034,Summer 2023 HAF Programme,09/08/2023,0183598,"1,536.00",Revenue,Galaxy Cheerleading Club,78261,,
Chorley Borough Council,http://statistics.data.gov.uk/id/local-authority/30UE,Homelessness,1075,EARL - Communities,Grants - Tenant Participation,40142,Grants and Subscriptions,5031,,16/08/2023,0183782,500.00,Revenue,Gary MacFarlane,85416,,
Chorley Borough Council,http://statistics.data.gov.uk/id/local-authority/30UE,Tourism,1039,GOVN - Policy & Governance,Tools & Equipment - Hire,40004,"Equipment, Furniture & Materia",5023,Gator Hire for Chorley Flower Show for 3 weeks,09/08/2023,0183492,"1,345.00",Revenue,Gator Hire UK Ltd,85471,,
Chorley Borough Council,http://statistics.data.gov.uk/id/local-authority/30UE,Homelessness,1075,EARL - Communities,Grants - Tenant Participation,40142,Grants and Subscriptions,5031,,16/08/2023,0183783,500.00,Revenue,Georgia Louise Cann,85496,,
Chorley Borough Council,http://statistics.data.gov.uk/id/local-authority/30UE,Homelessness,1075,EARL - Communities,Grants - Tenant Participation,40142,Grants and Subscriptions,5031,,16/08/2023,0183786,500.00,Revenue,Gillian Partington,85419,,
Chorley Borough Council,http://statistics.data.gov.uk/id/local-authority/30UE,Tourism,1039,GOVN - Policy & Governance,Publicity - Advertising,40157,Miscellaneous Expenses,5034,"Bus advertising Christmas Winter Wonderland campaign. 15 buses x streetliners = 4 weeks, from 28 November  25 December",23/08/2023,0183934,"1,500.00",Revenue,Global,82941,,
Chorley Borough Council,http://statistics.data.gov.uk/id/local-authority/30UE,Central Support Services,1009,CUST - Customer & Digital,Printing,40043,"Printing, Stationery & General",5026,Garden Waste Subscription payments 2023/24,02/08/2023,0182930,"1,424.17",Revenue,GoCardless,77457,,
Chorley Borough Council,http://statistics.data.gov.uk/id/local-authority/30UE,Central Support Services,1009,CUST - Customer & Digital,Printing,40043,"Printing, Stationery & General",5026,Garden Waste Subscription payments 2023/24,30/08/2023,0184182,"1,428.67",Revenue,GoCardless,77457,,
Chorley Borough Council,http://statistics.data.gov.uk/id/local-authority/30UE,Capital,Capital,GROW - Commercial Services,Consultants Fees,03025,Capital Expenditure,Capital,3 days in June 2023 Client Side Support (as per email dated 30.06.2023),02/08/2023,0182473,"1,500.00",Capital,Gosling Consulting Limited,78380,,
Chorley Borough Council,http://statistics.data.gov.uk/id/local-authority/30UE,Central Support Services,1009,PLAN - Planning & Development,Vandalism Repairs,20005,Repairs Maintenance & Alts,5005,Graffiti removal contract April 2023 ongoing,23/08/2023,0183424,"1,595.00",Revenue,Graffiti Away Ltd,78340,,
Chorley Borough Council,http://statistics.data.gov.uk/id/local-authority/30UE,Central Support Services,1009,PLAN - Planning & Development,Vandalism Repairs,20005,Repairs Maintenance & Alts,5005,Grafitti removal contract August 2023 onging,23/08/2023,0183896,"1,490.00",Revenue,Graffiti Away Ltd,78340,,
Chorley Borough Council,http://statistics.data.gov.uk/id/local-authority/30UE,Corporate Management,1008,GOVN - Policy & Governance,External Audit,40064,Services,5027,2021-22 External Audit. Agreed additional audit fees now approved by NAME REDACTED,30/08/2023,0183307,"40,888.00",Revenue,Grant Thornton UK LLP,57322,,
Chorley Borough Council,http://statistics.data.gov.uk/id/local-authority/30UE,Service Management & Support,1009,CUST - Customer & Digital,Supplies-Grounds Maintenance,40025,"Equipment, Furniture & Materia",5023,"300mm x 15mm Rubber Bands, , 30 Packs x 100 Per Box - 18.76 Per Box",09/08/2023,0183374,562.80,Revenue,Harrisons Packaging Ltd,17555,,
Chorley Borough Council,http://statistics.data.gov.uk/id/local-authority/30UE,Planning Policy,1092,GOVN - Policy & Governance,HR Recruitment - Advertising,15300,Indirect Employee Expenses,5002,Advertising with Haymarket Jobs,09/08/2023,0183446,"5,200.00",Revenue,Haymarket Publishing Services Ltd,16347,,
Chorley Borough Council,http://statistics.data.gov.uk/id/local-authority/30UE,Democratic Represent and  Mgnt,1007,GOVN - Policy & Governance,Other Contributions,40145,Grants and Subscriptions,5031,charity donation from the mayor of chorley 2022/23,23/08/2023,0183768,"2,000.00",Revenue,Help The Homeless (Chorley),16716,,
Chorley Borough Council,http://statistics.data.gov.uk/id/local-authority/30UE,Tourism,1039,GOVN - Policy & Governance,Professional Fees,40063,Services,5027,CFS prize money,23/08/2023,0183998,500.00,Revenue,High Park Nurseries,71509,,
Chorley Borough Council,http://statistics.data.gov.uk/id/local-authority/30UE,Precepts and Collection Fund,Precept,GOVN - Policy & Governance,Summons Costs,02017,Precepts & Collection Fund,Precept,,02/08/2023,0181673,623.00,Revenue,HMCTS (DD),88722,,
Chorley Borough Council,http://statistics.data.gov.uk/id/local-authority/30UE,Capital,Capital,GROW - Commercial Services,Other Contractor,03012,Capital Expenditure,Capital,Fire Engineers Report of redevelopment Works @ Strawberry Fields,16/08/2023,0183586,"3,000.00",Capital,Hoare Lea LLP,78513,,
Chorley Borough Council,http://statistics.data.gov.uk/id/local-authority/30UE,Tourism,1039,GOVN - Policy & Governance,Professional Fees,40063,Services,5027,Creation of the Children`s Design a Garden show garden for the Chorley Flower Show 2023.,09/08/2023,0183528,"3,000.00",Revenue,Homescapes 1990 Ltd,83511,,
Chorley Borough Council,http://statistics.data.gov.uk/id/local-authority/30UE,Central Support Services,1009,CUST - Customer & Digital,Telephones - Other,40085,Communication and Computing,5028,Hybrit SIP charges June 23,02/08/2023,0183263,747.50,Revenue,Hybrit LLP,77925,,
Chorley Borough Council,http://statistics.data.gov.uk/id/local-authority/30UE,Central Support Services,1009,CUST - Customer & Digital,Telephones - Other,40085,Communication and Computing,5028,Hybrit SIP call charges Jan - April 23,30/08/2023,0184176,"1,306.30",Revenue,Hybrit LLP,77925,,
Chorley Borough Council,http://statistics.data.gov.uk/id/local-authority/30UE,Central Support Services,1009,CUST - Customer & Digital,IT Software - Annual Licences,40101,Communication and Computing,5028,Gamma call charges Jan 2023 to June 2023,30/08/2023,0184203,"2,036.54",Revenue,Hybrit LLP,77925,,
Chorley Borough Council,http://statistics.data.gov.uk/id/local-authority/30UE,Corporate Management,1008,GOVN - Policy & Governance,Other Fees,40212,Miscellaneous Expenses,5034,Subsidy for the provision of a meals on wheels service in Chorley from 1 April 2023 to 31 March 2024,02/08/2023,0183037,"3,085.11",Revenue,I Care GB Ltd,77247,,
Chorley Borough Council,http://statistics.data.gov.uk/id/local-authority/30UE,Corporate Management,1008,GOVN - Policy & Governance,Other Fees,40212,Miscellaneous Expenses,5034,Subsidy for the provision of a meals on wheels service in Chorley from 1 April 2023 to 31 March 2024,02/08/2023,0183211,"3,415.51",Revenue,I Care GB Ltd,77247,,
Chorley Borough Council,http://statistics.data.gov.uk/id/local-authority/30UE,Corporate Management,1008,GOVN - Policy & Governance,Other Fees,40212,Miscellaneous Expenses,5034,Subsidy for the provision of a meals on wheels service in Chorley from 1 April 2023 to 31 March 2024,30/08/2023,0183894,"3,196.62",Revenue,I Care GB Ltd,77247,,
Chorley Borough Council,http://statistics.data.gov.uk/id/local-authority/30UE,Corporate Management,1008,GOVN - Policy & Governance,Other Fees,40212,Miscellaneous Expenses,5034,Subsidy for the provision of a meals on wheels service in Chorley from 1 April 2023 to 31 March 2024,30/08/2023,0183902,"3,010.77",Revenue,I Care GB Ltd,77247,,
Chorley Borough Council,http://statistics.data.gov.uk/id/local-authority/30UE,Culture & Heritage,1036,GOVN - Policy & Governance,Exhibitions,40176,Miscellaneous Expenses,5034,Delivery and retrieval of art exhibition by NAME REDACTED (20 historical women),09/08/2023,0183053,900.26,Revenue,International Art Services Ltd,89343,,
Chorley Borough Council,http://statistics.data.gov.uk/id/local-authority/30UE,Unapportionable Central OHeads,1009,GOVN - Policy & Governance,IT Software - Annual Licences,40101,Communication and Computing,5028,"Supply, Delivery, and Implementation of a Recruitment Solution as detailed in the ITQ with addition of 120 job multi posts, 500 S",23/08/2023,0183658,"5,000.00",Revenue,ITS Software Systems Ltd t/a Eploy,89437,,
Chorley Borough Council,http://statistics.data.gov.uk/id/local-authority/30UE,Unapportionable Central OHeads,1009,GOVN - Policy & Governance,IT Software - Annual Licences,40101,Communication and Computing,5028,"Supply, Delivery, and Implementation of a Recruitment Solution as detailed in the ITQ with addition of 120 job multi posts, 500 S",23/08/2023,0183715,"1,435.00",Revenue,ITS Software Systems Ltd t/a Eploy,89437,,
Chorley Borough Council,http://statistics.data.gov.uk/id/local-authority/30UE,Unapportionable Central OHeads,1009,GOVN - Policy & Governance,IT Software - Annual Licences,40101,Communication and Computing,5028,"Supply, Delivery, and Implementation of a Recruitment Solution as detailed in the ITQ with addition of 120 job multi posts, 500 S",23/08/2023,0183716,724.00,Revenue,ITS Software Systems Ltd t/a Eploy,89437,,
Chorley Borough Council,http://statistics.data.gov.uk/id/local-authority/30UE,Central Support Services,1009,EARL - Communities,Children's Activities,40188,Miscellaneous Expenses,5034,Delivery of Chorley HAF Programme Summer 23 as per grant agreement,09/08/2023,0183168,"10,240.00",Revenue,Jam Coding Ltd,89306,,
Chorley Borough Council,http://statistics.data.gov.uk/id/local-authority/30UE,Homelessness,1075,EARL - Communities,Grants - Tenant Participation,40142,Grants and Subscriptions,5031,,16/08/2023,0183794,500.00,Revenue,Jason O`Flaherty,85502,,
Chorley Borough Council,http://statistics.data.gov.uk/id/local-authority/30UE,Service Management & Support,1009,CUST - Customer & Digital,Supplies-Grounds Maintenance,40025,"Equipment, Furniture & Materia",5023,Supply 50x1.2mx3``x76mm galvanised posts,02/08/2023,0182746,"1,487.50",Revenue,Jewsons Limited,17844,,
Chorley Borough Council,http://statistics.data.gov.uk/id/local-authority/30UE,Open Spaces,1038,CUST - Customer & Digital,Supplies-Grounds Maintenance,40025,"Equipment, Furniture & Materia",5023,Supply 60 x 8` x 4` wooden sleepers. Deliver to Bengal St,02/08/2023,0182713,"1,529.49",Revenue,John H Mayor & Sons Ltd,16635,,
Chorley Borough Council,http://statistics.data.gov.uk/id/local-authority/30UE,Tourism,1039,GOVN - Policy & Governance,Professional Fees,40063,Services,5027,Appearance at Chorley Flower Show Friday 28 - Sunday 30 July 2023,09/08/2023,0183569,"2,650.00",Revenue,Jonathan Moseley,78153,,
Chorley Borough Council,http://statistics.data.gov.uk/id/local-authority/30UE,Homelessness,1075,EARL - Communities,Grants - Tenant Participation,40142,Grants and Subscriptions,5031,,16/08/2023,0183785,500.00,Revenue,Joyce Harasimiuk,85418,,
Chorley Borough Council,http://statistics.data.gov.uk/id/local-authority/30UE,Corporate Management,1008,GROW - Commercial Services,Promotional Expenses,40159,Miscellaneous Expenses,5034,"To provide entertainment for the Fun Thursday event for Market Walk Shopping Centre , , Face painting and balloon modelling on th",30/08/2023,0184134,500.00,Revenue,Judith Harding,89344,,
Chorley Borough Council,http://statistics.data.gov.uk/id/local-authority/30UE,Tourism,1039,GOVN - Policy & Governance,Professional Fees,40063,Services,5027,Willow weaving demonstration at Chorley Flower Show (200 per day),02/08/2023,0183322,600.00,Revenue,Julie Livesey at Pip Cottage,84161,,
Chorley Borough Council,http://statistics.data.gov.uk/id/local-authority/30UE,Capital,Capital,PLAN - Planning & Development,Main Contractor,03007,Capital Expenditure,Capital,Remainder of Stage 5 taking account of extended programme and increased budget. IN accordance with email from NAME REDACTED date,02/08/2023,0182620,"14,808.00",Capital,JYM Partnership LLP,18179,,
Chorley Borough Council,http://statistics.data.gov.uk/id/local-authority/30UE,Economic Development,1096,GROW - Commercial Services,Refuse Collection,20037,Cleaning and Domestic Supplies,5012,"Market Walk/Market Walk Extension/Markets/Calico Lounge/Reel Cinema Waste Removal 01.04.2023 - 31.03.2024:, , Market Walk YARD 1 ",23/08/2023,0183453,"1,989.00",Revenue,Kenny Waste Management Ltd,88641,,
Chorley Borough Council,http://statistics.data.gov.uk/id/local-authority/30UE,Homelessness,1075,EARL - Communities,Grants - Tenant Participation,40142,Grants and Subscriptions,5031,,23/08/2023,0183870,500.00,Revenue,Kevin Eardley,85644,,
Chorley Borough Council,http://statistics.data.gov.uk/id/local-authority/30UE,Service Management & Support,1009,CUST - Customer & Digital,Protective Clothing,40040,"Clothing, Uniforms and Laundry",5025,Quantity x 3- SIze 7 x 3- Size 8 x 3-Size 9 x 3- Size 11 AS803 BROAD Steel toe capped Safety Shoe @ 53.99 each,23/08/2023,0183878,647.88,Revenue,Key Engineering & Hygene Supplies,51615,,
Chorley Borough Council,http://statistics.data.gov.uk/id/local-authority/30UE,Service Management & Support,1009,CUST - Customer & Digital,Hire of Plant,40001,"Equipment, Furniture & Materia",5023,hire a Kubota Cut & Collect machine for 2 weeks,16/08/2023,0183395,650.00,Revenue,KH Hire Ltd,78531,,
Chorley Borough Council,http://statistics.data.gov.uk/id/local-authority/30UE,Open Spaces,1038,PLAN - Planning & Development,Playground Equipment,40008,"Equipment, Furniture & Materia",5023,"EN335869 Yarrow Valley Country Park - New Swings. quotation no SQ280344-1 supply of new KOMPAN Swing Frame, NRO924 Custom Variant",16/08/2023,0182380,"9,445.80",Revenue,Kompan,61460,,
Chorley Borough Council,http://statistics.data.gov.uk/id/local-authority/30UE,Control Accounts,Control,GOVN - Policy & Governance,General Balances,00100,Balance Sheet,Balance,Labour Councillors Association - July 23 Monthly Deductions from Payroll,16/08/2023,0183866,"2,951.15",Revenue,Labour Councillors Association,17577,,
Chorley Borough Council,http://statistics.data.gov.uk/id/local-authority/30UE,Central Support Services,1009,EARL - Communities,Misc Expenses,40200,Miscellaneous Expenses,5034,Supply and install 3 x 114mm straight galvanized post at three agreed locations. Includes collection of SPID equipment and solar ,09/08/2023,0180559,"1,954.08",Revenue,Lancashire County Council,17758,,
Chorley Borough Council,http://statistics.data.gov.uk/id/local-authority/30UE,Precepts and Collection Fund,Precepts,GOVN - Policy & Governance,LCC Precept,02009,Precepts & Collection Fund,Precept,LCC CTax precept,02/08/2023,0181064,"5,971,419.00",Revenue,Lancashire County Council,18386,,
Chorley Borough Council,http://statistics.data.gov.uk/id/local-authority/30UE,Collection Fund Revenue Accoun,,GOVN - Policy & Governance,NNDR County Share,02036,Precepts & Collection Fund,Precept,LCC BRates precepts,02/08/2023,0181064,"244,995.00",Revenue,Lancashire County Council,18386,,
Chorley Borough Council,http://statistics.data.gov.uk/id/local-authority/30UE,Precepts and Collection Fund,Precepts,GOVN - Policy & Governance,LCC Precept,02009,Precepts & Collection Fund,Precept,LCC CTax Precept,02/08/2023,0182499,"5,971,419.00",Revenue,Lancashire County Council,18386,,
Chorley Borough Council,http://statistics.data.gov.uk/id/local-authority/30UE,Collection Fund Revenue Accoun,,GOVN - Policy & Governance,NNDR County Share,02036,Precepts & Collection Fund,Precept,LCC BRates precepts,02/08/2023,0182499,"244,995.00",Revenue,Lancashire County Council,18386,,
Chorley Borough Council,http://statistics.data.gov.uk/id/local-authority/30UE,Central Support Services,1009,GROW - Commercial Services,Misc Expenses,40200,Miscellaneous Expenses,5034,"HOARDING PERMIT 26011 WINDERMERE ROAD CHORLEY START DATE 02/3/2022, -22/10/2022",30/08/2023,0184098,"1,020.00",Revenue,Lancashire County Council Highways,18845,,
Chorley Borough Council,http://statistics.data.gov.uk/id/local-authority/30UE,Business Support,1095,GROW - Commercial Services,General Repairs - Reactive,20004,Repairs Maintenance & Alts,5005,"Reactive Gas, Air Conditioning and Plumbing Repair Works @ Primrose Gardens",16/08/2023,0181347,"1,176.00",Revenue,Lancashire Gas Services Ltd,78192,,
Chorley Borough Council,http://statistics.data.gov.uk/id/local-authority/30UE,Unapportionable Central OHeads,1009,GROW - Commercial Services,General Repairs - Reactive,20004,Repairs Maintenance & Alts,5005,"Reactive Gas, Air Conditioning and Plumbing Repair Works @ Union Street",09/08/2023,0182220,"1,014.56",Revenue,Lancashire Gas Services Ltd,78192,,
Chorley Borough Council,http://statistics.data.gov.uk/id/local-authority/30UE,Unapportionable Central OHeads,1009,GROW - Commercial Services,Planned Maintenance,20006,Repairs Maintenance & Alts,5005,"Planned Gas, Air Conditioning and Plumbing Maintenance and Remedial Works also includes insurance inspector remedials @ Union Str",09/08/2023,0182220,"3,399.43",Revenue,Lancashire Gas Services Ltd,78192,,
Chorley Borough Council,http://statistics.data.gov.uk/id/local-authority/30UE,Unapportionable Central OHeads,1009,GROW - Commercial Services,General Repairs - Reactive,20004,Repairs Maintenance & Alts,5005,"Reactive Gas, Air Conditioning and Plumbing Repair Works @ CBC Industrial Units",16/08/2023,0182391,"1,108.00",Revenue,Lancashire Gas Services Ltd,78192,,
Chorley Borough Council,http://statistics.data.gov.uk/id/local-authority/30UE,Unapportionable Central OHeads,1009,GROW - Commercial Services,General Repairs - Reactive,20004,Repairs Maintenance & Alts,5005,"Reactive Gas, Air Conditioning and Plumbing Repair Works @ Astley Hall & Buildings",16/08/2023,0183487,"1,010.65",Revenue,Lancashire Gas Services Ltd,78192,,
Chorley Borough Council,http://statistics.data.gov.uk/id/local-authority/30UE,Corporate Management,1008,GROW - Commercial Services,Promotional Expenses,40159,Miscellaneous Expenses,5034,"To provide entertainment for the Market Walk Shopping Centre Fun Thursday Event on 27th July 2023 & 24th August 2023 10am - 4pm, ",30/08/2023,0181898,"2,250.00",Revenue,Lancashire Ice Queen Parties,88427,,
Chorley Borough Council,http://statistics.data.gov.uk/id/local-authority/30UE,Precepts and Collection Fund,Precepts,GOVN - Policy & Governance,LCFA Precept,02011,Precepts & Collection Fund,Precept,LCFA Council tax precept,02/08/2023,0181065,"312,066.00",Revenue,Lancs Combined Fire Authority,17768,,
Chorley Borough Council,http://statistics.data.gov.uk/id/local-authority/30UE,Collection Fund Revenue Accoun,,GOVN - Policy & Governance,NNDR Fire Share,02037,Precepts & Collection Fund,Precept,LCFA Business Rates Precept,02/08/2023,0181065,"27,221.00",Revenue,Lancs Combined Fire Authority,17768,,
Chorley Borough Council,http://statistics.data.gov.uk/id/local-authority/30UE,Precepts and Collection Fund,Precepts,GOVN - Policy & Governance,LCFA Precept,02011,Precepts & Collection Fund,Precept,LCFA CTax precept,02/08/2023,0182500,"312,066.00",Revenue,Lancs Combined Fire Authority,17768,,
Chorley Borough Council,http://statistics.data.gov.uk/id/local-authority/30UE,Collection Fund Revenue Accoun,,GOVN - Policy & Governance,NNDR Fire Share,02037,Precepts & Collection Fund,Precept,LCFA BRates precepts,02/08/2023,0182500,"27,221.00",Revenue,Lancs Combined Fire Authority,17768,,
Chorley Borough Council,http://statistics.data.gov.uk/id/local-authority/30UE,Tourism,1039,GOVN - Policy & Governance,Professional Fees,40063,Services,5027,"Payment for the creation and build of the musical show garden for the Chorley Flower Show 2023., , Fee of 3000 +VAT",09/08/2023,0183524,"3,000.00",Revenue,Leafy Lytham,85409,,
Chorley Borough Council,http://statistics.data.gov.uk/id/local-authority/30UE,Control Accounts,Control,GOVN - Policy & Governance,Manual Control Account,00001,Balance Sheet,Balance,REFUND,02/08/2023,CRREF98,"15,859.20",Revenue,Learning Pool Limited,76161,,
Chorley Borough Council,http://statistics.data.gov.uk/id/local-authority/30UE,Central Support Services,1009,CUST - Customer & Digital,Publications,40054,"Printing, Stationery & General",5026,Stones Justice Manual and CD 2023 SetISBN 9781474324090Invoice Number: SG634303M,23/08/2023,0183471,514.49,Revenue,Lexis Nexis UK,16688,,
Chorley Borough Council,http://statistics.data.gov.uk/id/local-authority/30UE,Unapportionable Central OHeads,1009,CUST - Customer & Digital,Professional Fees,40063,Services,5027,2020/21 NNDR3 Support with respect to TIG,30/08/2023,0184109,"1,190.00",Revenue,LG Futures,22551,,
Chorley Borough Council,http://statistics.data.gov.uk/id/local-authority/30UE,Unapportionable Central OHeads,1009,CUST - Customer & Digital,Professional Fees,14011,Direct Employee Expenses,5001,Empty Homes Review - June 23,30/08/2023,0184284,"8,856.65",Revenue,Liberata (Capacity Grid),67989,,
Chorley Borough Council,http://statistics.data.gov.uk/id/local-authority/30UE,Capital,Capital,EARL - Communities,Grants,03002,Capital Expenditure,Capital,DFG work on behalf of Chorley HIA Team,09/08/2023,0183421,986.00,Capital,Liberata UK,20716,,
Chorley Borough Council,http://statistics.data.gov.uk/id/local-authority/30UE,Unapportionable Central OHeads,1009,GOVN - Policy & Governance,HR Approved Occ Health Fees,15201,Indirect Employee Expenses,5002,Counselling for Staff in March 2023,02/08/2023,0181907,630.00,Revenue,Livewell Counselling Service,63084,,
Chorley Borough Council,http://statistics.data.gov.uk/id/local-authority/30UE,Unapportionable Central OHeads,1009,GOVN - Policy & Governance,HR Approved Occ Health Fees,15201,Indirect Employee Expenses,5002,Counselling for Staff July 2023,16/08/2023,0183693,585.00,Revenue,Livewell Counselling Service,63084,,
Chorley Borough Council,http://statistics.data.gov.uk/id/local-authority/30UE,Central Support Services,1009,EARL - Communities,Play Events,40181,Miscellaneous Expenses,5034,"Provision of equipment and staff at Summer Playday Weds 2 Aug as per email discussion & quote:, , 3 x staff members, Generator wi",09/08/2023,0183096,"1,500.00",Revenue,LJ Events,85299,,
Chorley Borough Council,http://statistics.data.gov.uk/id/local-authority/30UE,Homelessness,1075,EARL - Communities,Grants - Tenant Participation,40142,Grants and Subscriptions,5031,,23/08/2023,0183869,500.00,Revenue,Louise Arnold,85417,,
Chorley Borough Council,http://statistics.data.gov.uk/id/local-authority/30UE,Central Support Services,1009,CUST - Customer & Digital,External Contractor,40198,Miscellaneous Expenses,5034,"Modified Phase 1 - Paired Comparison Failure Investigation of Wheelie Bins at Chorley Council , Quotation Ref: Q510-2023mod1, Sta",16/08/2023,0183396,"5,295.00",Revenue,LPD Lab Services Limited,89245,,
Chorley Borough Council,http://statistics.data.gov.uk/id/local-authority/30UE,Recreation & Sport,1037,GROW - Commercial Services,Misc Expenses,40200,Miscellaneous Expenses,5034,"Muscular Shelving Starter Unit 2000 X 1000 X 350mm - Product Code: 1.487.827, GBP 88.91., , 6 needed - total cost = 533.46",16/08/2023,0183397,533.46,Revenue,Lyreco UK Ltd,17623,,
Chorley Borough Council,http://statistics.data.gov.uk/id/local-authority/30UE,Service Management & Support,1009,CUST - Customer & Digital,Grounds Maintenance Contractor,20043,Grounds Maintenance Costs,5013,Walkers Tree Services Invoice 69,23/08/2023,0183754,"5,285.00",Revenue,M J Walker,62044,,
Chorley Borough Council,http://statistics.data.gov.uk/id/local-authority/30UE,Tourism,1039,GOVN - Policy & Governance,Children's Activities,40188,Miscellaneous Expenses,5034,"6hrs per day story & craft @ Chorley Flower Show 2023 (3 days), Flower and garden craft and story mixing",16/08/2023,0183278,"2,007.00",Revenue,Magical Story Jars,77817,,
Chorley Borough Council,http://statistics.data.gov.uk/id/local-authority/30UE,Tourism,1039,GOVN - Policy & Governance,Professional Fees,40063,Services,5027,NAME REDACTED plus Potting Shed Stage & Equipment for Chorley Flower Show Friday 28 - Sunday 30 July 2023,09/08/2023,0183398,"3,605.00",Revenue,Martin Fish Ltd,76761,,
Chorley Borough Council,http://statistics.data.gov.uk/id/local-authority/30UE,Building Control,1090,PLAN - Planning & Development,Agency Staff,13000,Direct Employee Expenses,5001,Agency Fees for NAME REDACTED May 2023 onwards,02/08/2023,0183097,"1,260.00",Revenue,Matchtech,77343,,
Chorley Borough Council,http://statistics.data.gov.uk/id/local-authority/30UE,Building Control,1090,PLAN - Planning & Development,Agency Staff,13000,Direct Employee Expenses,5001,Agency Fees for NAME REDACTED May 2023 onwards,16/08/2023,0183504,"1,316.00",Revenue,Matchtech,77343,,
Chorley Borough Council,http://statistics.data.gov.uk/id/local-authority/30UE,Building Control,1090,PLAN - Planning & Development,Agency Staff,13000,Direct Employee Expenses,5001,Agency Fees for NAME REDACTED May 2023 onwards,30/08/2023,0183987,"1,316.00",Revenue,Matchtech,77343,,
Chorley Borough Council,http://statistics.data.gov.uk/id/local-authority/30UE,Homelessness,1075,EARL - Communities,Grants - Tenant Participation,40142,Grants and Subscriptions,5031,,16/08/2023,0183793,500.00,Revenue,Michelle Brown,87062,,
Chorley Borough Council,http://statistics.data.gov.uk/id/local-authority/30UE,Open Spaces,1038,CUST - Customer & Digital,Supplies-Grounds Maintenance,40025,"Equipment, Furniture & Materia",5023,"Supply various sizes of troughs, hanging baskets & half moons for the T/C & Adlington Parish",02/08/2023,0183209,"7,861.82",Revenue,Midstream (West Lancs) Ltd,20873,,
Chorley Borough Council,http://statistics.data.gov.uk/id/local-authority/30UE,Collection Fund Revenue Accoun,,GOVN - Policy & Governance,NNDR Central Share,02034,Precepts & Collection Fund,Precept,central share BR,02/08/2023,0180849,"1,195,528.00",Revenue,Ministry of Housing Communities & Local Government,16280,,
Chorley Borough Council,http://statistics.data.gov.uk/id/local-authority/30UE,Collection Fund Revenue Accoun,,GOVN - Policy & Governance,NNDR Central Share,02034,Precepts & Collection Fund,Precept,deficit collection fund,02/08/2023,0180849,"29,447.00",Revenue,Ministry of Housing Communities & Local Government,16280,,
Chorley Borough Council,http://statistics.data.gov.uk/id/local-authority/30UE,Collection Fund Revenue Accoun,,GOVN - Policy & Governance,NNDR Central Share,02034,Precepts & Collection Fund,Precept,Central share BR,02/08/2023,0182126,"1,195,529.00",Revenue,Ministry of Housing Communities & Local Government,16280,,
Chorley Borough Council,http://statistics.data.gov.uk/id/local-authority/30UE,Collection Fund Revenue Accoun,,GOVN - Policy & Governance,NNDR Central Share,02034,Precepts & Collection Fund,Precept,Deficit Collection Fund,02/08/2023,0182126,"29,447.00",Revenue,Ministry of Housing Communities & Local Government,16280,,
Chorley Borough Council,http://statistics.data.gov.uk/id/local-authority/30UE,Collection Fund Revenue Accoun,,GOVN - Policy & Governance,NNDR Central Share,02034,Precepts & Collection Fund,Precept,central share BR,02/08/2023,0182952,"1,195,529.00",Revenue,Ministry of Housing Communities & Local Government,16280,,
Chorley Borough Council,http://statistics.data.gov.uk/id/local-authority/30UE,Collection Fund Revenue Accoun,,GOVN - Policy & Governance,NNDR Central Share,02034,Precepts & Collection Fund,Precept,deficit collection fund,02/08/2023,0182952,"29,447.00",Revenue,Ministry of Housing Communities & Local Government,16280,,
Chorley Borough Council,http://statistics.data.gov.uk/id/local-authority/30UE,Capital,Capital,EARL - Communities,Grants,03002,Capital Expenditure,Capital,,16/08/2023,0183597,"5,465.86",Capital,Mint Northwest Ltd,65607,,
Chorley Borough Council,http://statistics.data.gov.uk/id/local-authority/30UE,Capital,Capital,EARL - Communities,Grants,03002,Capital Expenditure,Capital,23/00012/CAG NAME REDACTED,16/08/2023,0183642,"6,185.68",Capital,Mint Northwest Ltd,65607,,
Chorley Borough Council,http://statistics.data.gov.uk/id/local-authority/30UE,Capital,Capital,EARL - Communities,Grants,03002,Capital Expenditure,Capital,"22/00145/DFG, NAME REDACTED, ADDRESS REDACTED",23/08/2023,0183922,"8,110.26",Capital,Mint Northwest Ltd,65607,,
Chorley Borough Council,http://statistics.data.gov.uk/id/local-authority/30UE,Capital,Capital,EARL - Communities,Grants,03002,Capital Expenditure,Capital,"23/00057/CAG, NAME REDACTED, ADDRESS REDACTED",23/08/2023,0183929,"5,755.82",Capital,Mint Northwest Ltd,65607,,
Chorley Borough Council,http://statistics.data.gov.uk/id/local-authority/30UE,Capital,Capital,EARL - Communities,Grants,03002,Capital Expenditure,Capital,"23/00035/CAG, NAME REDACTED, ADDRESS REDACTED",30/08/2023,0184188,"6,261.15",Capital,Mint Northwest Ltd,65607,,
Chorley Borough Council,http://statistics.data.gov.uk/id/local-authority/30UE,Private Sector HSG Renewal,1073,EARL - Communities,External Contractor,40198,Miscellaneous Expenses,5034,Ref 200787,16/08/2023,0183890,520.00,Revenue,Mobility Care Services,70841,,
Chorley Borough Council,http://statistics.data.gov.uk/id/local-authority/30UE,Private Sector HSG Renewal,1073,EARL - Communities,External Contractor,40198,Miscellaneous Expenses,5034,Ref 200788,16/08/2023,0183890,720.00,Revenue,Mobility Care Services,70841,,
Chorley Borough Council,http://statistics.data.gov.uk/id/local-authority/30UE,Elections,1012,GOVN - Policy & Governance,Computer Software-Maintenance,40107,Communication and Computing,5028,"FAO NAME REDACTED, Quotation Reference - MODERNPOLLAB00592, Hiring 10 Ipads for polling stations for by elections on 14 Septemb",30/08/2023,0184120,"1,750.00",Revenue,Modern Democracy Limited,87072,,
Chorley Borough Council,http://statistics.data.gov.uk/id/local-authority/30UE,Central Support Services,1009,PLAN - Planning & Development,Misc Expenses,40200,Miscellaneous Expenses,5034,"Creation of path from Buckshaw Primary School to Clough Acre, Astley Village to specification. Programmed for August or 2023",23/08/2023,0183925,"4,422.00",Revenue,Mr Andy Hart,72236,,
Chorley Borough Council,http://statistics.data.gov.uk/id/local-authority/30UE,Development Control,1091,PLAN - Planning & Development,Legal Fees,40171,Miscellaneous Expenses,5034,Professional fees of NAME REDACTED - Kings Chambers for Land at Blackburn Road enforcement notice,02/08/2023,0183345,900.00,Revenue,Mr Ian Ponter,19968,,
Chorley Borough Council,http://statistics.data.gov.uk/id/local-authority/30UE,Tourism,1039,GOVN - Policy & Governance,Professional Fees,40063,Services,5027,"Vinyl Wristbands, , Options: Type: Printed - Product Colour: 1 Colour(B-12) - Print Colour: 1 Colour(Whitec) - Shape: Slim - Quan",30/08/2023,0184278,"2,195.00",Revenue,Munco International T/A Adband,60837,,
Chorley Borough Council,http://statistics.data.gov.uk/id/local-authority/30UE,Tourism,1039,GOVN - Policy & Governance,Professional Fees,40063,Services,5027,"Title: 24PP A5 + 4PP COVER CHORLEY FLOWER SHOW PROGRAMME 2023, Size: A5., Artwork: From Press-Ready PDF Supplied with all ticks a",09/08/2023,0183363,"1,291.00",Revenue,N B Colour Print Ltd,17917,,
Chorley Borough Council,http://statistics.data.gov.uk/id/local-authority/30UE,Development Control,1091,PLAN - Planning & Development,Statutory Notices,40160,Miscellaneous Expenses,5034,Planning Public Notices to appear in the Chorley Guardian April 2023 to March 2024,02/08/2023,0183314,"1,191.36",Revenue,National World Publishing Limited,20072,,
Chorley Borough Council,http://statistics.data.gov.uk/id/local-authority/30UE,Development Control,1091,PLAN - Planning & Development,Statutory Notices,40160,Miscellaneous Expenses,5034,Planning Public Notices to appear in the Chorley Guardian April 2023 to March 2024,23/08/2023,0183685,595.68,Revenue,National World Publishing Limited,20072,,
Chorley Borough Council,http://statistics.data.gov.uk/id/local-authority/30UE,Development Control,1091,PLAN - Planning & Development,Statutory Notices,40160,Miscellaneous Expenses,5034,Planning Public Notices to appear in the Chorley Guardian April 2023 to March 2024,23/08/2023,0183995,521.22,Revenue,National World Publishing Limited,20072,,
Chorley Borough Council,http://statistics.data.gov.uk/id/local-authority/30UE,Homelessness,1075,EARL - Communities,Grants - Tenant Participation,40142,Grants and Subscriptions,5031,,16/08/2023,0183807,500.00,Revenue,Nicholas J Roden,87102,,
Chorley Borough Council,http://statistics.data.gov.uk/id/local-authority/30UE,Service Management & Support,1009,CUST - Customer & Digital,Supplies-Grounds Maintenance,40025,"Equipment, Furniture & Materia",5023,"As per quotation from NAME REDACTED �	40 litres Nomix dual (5litre boxes) �	100 litres Nomix Conqueror ( 5litre boxes) �	20 litres Clean",09/08/2023,0182835,902.40,Revenue,Nomix Enviro Ltd,82223,,
Chorley Borough Council,http://statistics.data.gov.uk/id/local-authority/30UE,Service Management & Support,1009,CUST - Customer & Digital,Supplies-Grounds Maintenance,40025,"Equipment, Furniture & Materia",5023,No Mix Hi Lite x 100 litres,23/08/2023,0183573,"2,352.40",Revenue,Nomix Enviro Ltd,82223,,
Chorley Borough Council,http://statistics.data.gov.uk/id/local-authority/30UE,Service Management & Support,1009,CUST - Customer & Digital,Supplies-Grounds Maintenance,40025,"Equipment, Furniture & Materia",5023,"Quantity x 150 litres, Nomix Hilite 5 Litre packs @ 96.10 each, Carriage 46",30/08/2023,0184285,"2,929.00",Revenue,Nomix Enviro Ltd,82223,,
Chorley Borough Council,http://statistics.data.gov.uk/id/local-authority/30UE,Central Support Services,1009,CUST - Customer & Digital,Hire Of Vehicles and Plant,30028,Contrct Hire & Operating Lease,5018,Vehicle hire: 3.5t Luton Van with tail-lift (April 2023- March 2024) Current Reg: DX69 ZSG,09/08/2023,0180560,766.08,Revenue,Northgate Vehicle Hire (NW) Ltd,17360,,
Chorley Borough Council,http://statistics.data.gov.uk/id/local-authority/30UE,Central Support Services,1009,CUST - Customer & Digital,Hire Of Vehicles and Plant,30028,Contrct Hire & Operating Lease,5018,Vehicle hire: 3.5t Luton Van with tail-lift (April 2023- March 2024) Current Reg: VIN REDACTED,09/08/2023,0181477,766.08,Revenue,Northgate Vehicle Hire (NW) Ltd,17360,,
Chorley Borough Council,http://statistics.data.gov.uk/id/local-authority/30UE,Central Support Services,1009,CUST - Customer & Digital,Hire Of Vehicles and Plant,30028,Contrct Hire & Operating Lease,5018,Vehicle hire: 3.5t Luton Van with tail-lift (April 2023- March 2024) Current Reg: VIN REDACTED,09/08/2023,0182648,766.08,Revenue,Northgate Vehicle Hire (NW) Ltd,17360,,
Chorley Borough Council,http://statistics.data.gov.uk/id/local-authority/30UE,Central Support Services,1009,CUST - Customer & Digital,Hire Of Vehicles and Plant,30028,Contrct Hire & Operating Lease,5018,Vehicle hire: 3.5t Luton Van with tail-lift (April 2023- March 2024) Current Reg: VIN REDACTED,09/08/2023,0183519,766.08,Revenue,Northgate Vehicle Hire (NW) Ltd,17360,,
Chorley Borough Council,http://statistics.data.gov.uk/id/local-authority/30UE,Central Support Services,1009,GROW - Commercial Services,Electricity,20013,Energy Costs,5006,"HD46222K, 01 Nov 22 - 30 Nov 22",02/08/2023,0183235,"7,122.57",Revenue,Npower Commercial Gas,16814,,
Chorley Borough Council,http://statistics.data.gov.uk/id/local-authority/30UE,Unapportionable Central OHeads,1009,GROW - Commercial Services,Electricity,20013,Energy Costs,5006,"HD46222M, 01 Nov 22 - 30 Nov 22",02/08/2023,0183236,"6,242.36",Revenue,Npower Commercial Gas,16814,,
Chorley Borough Council,http://statistics.data.gov.uk/id/local-authority/30UE,Central Support Services,1009,GROW - Commercial Services,Electricity,20013,Energy Costs,5006,"HD46222K, 01 Oct 21 - 31 Oct 21",02/08/2023,0183239,"3,447.53",Revenue,Npower Commercial Gas,16814,,
Chorley Borough Council,http://statistics.data.gov.uk/id/local-authority/30UE,Business Support,1095,GROW - Commercial Services,Electricity,20013,Energy Costs,5006,"HD46222V, 01 Nov 22 - 30 Nov 22",02/08/2023,0183240,"3,313.35",Revenue,Npower Commercial Gas,16814,,
Chorley Borough Council,http://statistics.data.gov.uk/id/local-authority/30UE,Democratic Represent and  Mgnt,1007,GROW - Commercial Services,Electricity,20013,Energy Costs,5006,"HD462237, 01 Feb 23 - 28 Feb 23",02/08/2023,0183242,"13,020.50",Revenue,Npower Commercial Gas,16814,,
Chorley Borough Council,http://statistics.data.gov.uk/id/local-authority/30UE,Recreation & Sport,1037,GROW - Commercial Services,Electricity,20013,Energy Costs,5006,"HD462238, 01 Nov 22 - 30 Nov 22",02/08/2023,0183243,"2,434.58",Revenue,Npower Commercial Gas,16814,,
Chorley Borough Council,http://statistics.data.gov.uk/id/local-authority/30UE,Democratic Represent and  Mgnt,1007,GROW - Commercial Services,Electricity,20013,Energy Costs,5006,"HD462237, 01 Nov 22 - 30 Nov 22",02/08/2023,0183244,"13,583.26",Revenue,Npower Commercial Gas,16814,,
Chorley Borough Council,http://statistics.data.gov.uk/id/local-authority/30UE,Central Support Services,1009,GROW - Commercial Services,Electricity,20013,Energy Costs,5006,"HD46223B, 01 Feb 23 - 28 Feb 23",02/08/2023,0183245,"1,777.40",Revenue,Npower Commercial Gas,16814,,
Chorley Borough Council,http://statistics.data.gov.uk/id/local-authority/30UE,Recreation & Sport,1037,GROW - Commercial Services,Electricity,20013,Energy Costs,5006,"HD462239, 01 Feb 23 - 28 Feb 23",02/08/2023,0183246,"2,597.99",Revenue,Npower Commercial Gas,16814,,
Chorley Borough Council,http://statistics.data.gov.uk/id/local-authority/30UE,Business Support,1095,GROW - Commercial Services,Electricity,20013,Energy Costs,5006,"HD46222V, 01 Feb 23 - 28 Feb 23",02/08/2023,0183247,"3,151.39",Revenue,Npower Commercial Gas,16814,,
Chorley Borough Council,http://statistics.data.gov.uk/id/local-authority/30UE,Unapportionable Central OHeads,1009,GROW - Commercial Services,Electricity,20013,Energy Costs,5006,"HD46222M, 01 Feb 23 - 28 Feb 23",02/08/2023,0183249,"5,905.73",Revenue,Npower Commercial Gas,16814,,
Chorley Borough Council,http://statistics.data.gov.uk/id/local-authority/30UE,Recreation & Sport,1037,GROW - Commercial Services,Electricity,20013,Energy Costs,5006,"HD462238, 01 Feb 23 - 28 Feb 23",02/08/2023,0183250,"2,166.75",Revenue,Npower Commercial Gas,16814,,
Chorley Borough Council,http://statistics.data.gov.uk/id/local-authority/30UE,Unapportionable Central OHeads,1009,GROW - Commercial Services,Electricity,20013,Energy Costs,5006,"HD46222L, 01 Feb 23 - 28 Feb 23",02/08/2023,0183251,"2,686.94",Revenue,Npower Commercial Gas,16814,,
Chorley Borough Council,http://statistics.data.gov.uk/id/local-authority/30UE,Central Support Services,1009,GROW - Commercial Services,Electricity,20013,Energy Costs,5006,"HD46222K, 01 Feb 23 - 28 Feb 23",02/08/2023,0183252,"6,448.03",Revenue,Npower Commercial Gas,16814,,
Chorley Borough Council,http://statistics.data.gov.uk/id/local-authority/30UE,Central Support Services,1009,GROW - Commercial Services,Electricity,20013,Energy Costs,5006,"HD46223B, 01 Nov 22 - 30 Nov 22",02/08/2023,0183253,"1,705.12",Revenue,Npower Commercial Gas,16814,,
Chorley Borough Council,http://statistics.data.gov.uk/id/local-authority/30UE,Unapportionable Central OHeads,1009,GROW - Commercial Services,Electricity,20013,Energy Costs,5006,"HD46222L, 01 Nov 22 - 30 Nov 22",02/08/2023,0183254,"2,944.99",Revenue,Npower Commercial Gas,16814,,
Chorley Borough Council,http://statistics.data.gov.uk/id/local-authority/30UE,Recreation & Sport,1037,GROW - Commercial Services,Electricity,20013,Energy Costs,5006,"HD462239, 01 Nov 22 - 30 Nov 22",02/08/2023,0183255,"2,678.09",Revenue,Npower Commercial Gas,16814,,
Chorley Borough Council,http://statistics.data.gov.uk/id/local-authority/30UE,Central Support Services,1009,GROW - Commercial Services,Electricity,20013,Energy Costs,5006,"HD46222K, 01 Sep 21 - 30 Sep 21",02/08/2023,0183256,"3,127.67",Revenue,Npower Commercial Gas,16814,,
Chorley Borough Council,http://statistics.data.gov.uk/id/local-authority/30UE,Unapportionable Central OHeads,1009,GROW - Commercial Services,Electricity,20013,Energy Costs,5006,"HD46222L, 01 Sep 21 - 30 Sep 21",02/08/2023,0183257,894.89,Revenue,Npower Commercial Gas,16814,,
Chorley Borough Council,http://statistics.data.gov.uk/id/local-authority/30UE,Unapportionable Central OHeads,1009,GROW - Commercial Services,Electricity,20013,Energy Costs,5006,"HD46222M, 01 Sep 21 - 30 Sep 21",02/08/2023,0183258,"2,407.10",Revenue,Npower Commercial Gas,16814,,
Chorley Borough Council,http://statistics.data.gov.uk/id/local-authority/30UE,Business Support,1095,GROW - Commercial Services,Electricity,20013,Energy Costs,5006,"HD46222V, 01 Sep 21 - 30 Sep 21",02/08/2023,0183259,"1,132.68",Revenue,Npower Commercial Gas,16814,,
Chorley Borough Council,http://statistics.data.gov.uk/id/local-authority/30UE,Unapportionable Central OHeads,1009,GROW - Commercial Services,Electricity,20013,Energy Costs,5006,1/10 to 31/10/21,02/08/2023,0183281,"2,605.27",Revenue,Npower Commercial Gas,16814,,
Chorley Borough Council,http://statistics.data.gov.uk/id/local-authority/30UE,Recreation & Sport,1037,GROW - Commercial Services,Electricity,20013,Energy Costs,5006,1/9 to 30/9/21,02/08/2023,0183282,"1,222.02",Revenue,Npower Commercial Gas,16814,,
Chorley Borough Council,http://statistics.data.gov.uk/id/local-authority/30UE,Democratic Represent and  Mgnt,1007,GROW - Commercial Services,Electricity,20013,Energy Costs,5006,1/9 to 30/9/21,02/08/2023,0183283,"7,007.72",Revenue,Npower Commercial Gas,16814,,
Chorley Borough Council,http://statistics.data.gov.uk/id/local-authority/30UE,Business Support,1095,GROW - Commercial Services,Electricity,20013,Energy Costs,5006,1/9 to 30/9/21,02/08/2023,0183284,"3,627.64",Revenue,Npower Commercial Gas,16814,,
Chorley Borough Council,http://statistics.data.gov.uk/id/local-authority/30UE,Recreation & Sport,1037,GROW - Commercial Services,Electricity,20013,Energy Costs,5006,1/9 to 30/9/21,02/08/2023,0183285,901.95,Revenue,Npower Commercial Gas,16814,,
Chorley Borough Council,http://statistics.data.gov.uk/id/local-authority/30UE,Parking Services,1066,GROW - Commercial Services,External Contractors,50008,Private Contractors,5042,"Provision of off street car park enforcement for period 01.04.23 - 31.03.24, , Rate: 18.40 ph, , Monday - Saturday Parking Atten",09/08/2023,0183449,"4,213.60",Revenue,NSL Limited,67253,,
Chorley Borough Council,http://statistics.data.gov.uk/id/local-authority/30UE,Business Support,1095,GROW - Commercial Services,Planned Maintenance,20006,Repairs Maintenance & Alts,5005,"Primrose Gardens, , Decoration of all communal areas as per quote NAME REDACTED",30/08/2023,0183947,"13,040.00",Revenue,Optimum commercial interiors,87262,,
Chorley Borough Council,http://statistics.data.gov.uk/id/local-authority/30UE,Business Support,1095,GROW - Commercial Services,Planned Maintenance,20006,Repairs Maintenance & Alts,5005,MATERIALS,30/08/2023,0183947,"8,749.23",Revenue,Optimum commercial interiors,87262,,
Chorley Borough Council,http://statistics.data.gov.uk/id/local-authority/30UE,Business Support,1095,GROW - Commercial Services,Electricity,20013,Energy Costs,5006,Unit 12 Market Walk,09/08/2023,0183606,549.96,Revenue,Opus Energy Ltd,65093,,
Chorley Borough Council,http://statistics.data.gov.uk/id/local-authority/30UE,Capital,Capital,GROW - Commercial Services,Main Contractor,03007,Capital Expenditure,Capital,"New Fridge Order for All Seasons Leisure Centre for new Cafe area., , Delivery Address:, All Seasons Leisure Centre, Water Street",23/08/2023,0183404,"1,605.00",Capital,Osborne Refridgerators Ltd,22325,,
Chorley Borough Council,http://statistics.data.gov.uk/id/local-authority/30UE,Parking Services,1066,GROW - Commercial Services,Printing,40043,"Printing, Stationery & General",5026,"Please supply stock tickets (for all car parks except Flat Iron & Portland St) , , Supply 20 rolls @ 3000 tickets per roll, 27.0",23/08/2023,0183830,548.60,Revenue,Paperwork (UK) Limited,18296,,
Chorley Borough Council,http://statistics.data.gov.uk/id/local-authority/30UE,Business Support,1095,GROW - Commercial Services,Cleaning Materials,40019,"Equipment, Furniture & Materia",5023,12x AA301 Mini Smart One Mini Toilet Rolls 2 ply,16/08/2023,0183217,543.96,Revenue,Pattersons Holdings (Bristol),77537,,
Chorley Borough Council,http://statistics.data.gov.uk/id/local-authority/30UE,Unapportionable Central OHeads,1009,GOVN - Policy & Governance,Tools & Equipment - Purchase,40003,"Equipment, Furniture & Materia",5023,"Numatic Henry Vacuum Red HVR160 240 Volt 620watt, Quantity 4 @126.93 each, Total 507.72",02/08/2023,0183218,507.72,Revenue,Pattersons Holdings (Bristol),77537,,
Chorley Borough Council,http://statistics.data.gov.uk/id/local-authority/30UE,Tourism,1039,GOVN - Policy & Governance,Publicity - Advertising,40157,Miscellaneous Expenses,5034,Photography at CFS,09/08/2023,0183364,800.00,Revenue,Paul Heyes Photographer,20909,,
Chorley Borough Council,http://statistics.data.gov.uk/id/local-authority/30UE,Tourism,1039,GOVN - Policy & Governance,External Contractor,40198,Miscellaneous Expenses,5034,Build and take down costs plus equipment hire,02/08/2023,0183266,"7,400.00",Revenue,Paul K Sound & Vision,16607,,
Chorley Borough Council,http://statistics.data.gov.uk/id/local-authority/30UE,Tourism,1039,GOVN - Policy & Governance,Tools & Equipment - Hire,40004,"Equipment, Furniture & Materia",5023,"Hire and or stage, PA and all associated infrastructure",09/08/2023,0183564,"4,542.00",Revenue,Paul K Sound & Vision,16607,,
Chorley Borough Council,http://statistics.data.gov.uk/id/local-authority/30UE,Tourism,1039,GOVN - Policy & Governance,Tools & Equipment - Hire,40004,"Equipment, Furniture & Materia",5023,"TO SUPPLYKITCHEN DEMONSTRATION 		, SET FOR TWO DAYS INCLUDING OVERNIGHT		, DIISMANTLE AND REBUILD, INC LABOUR	, SUPPLY MAINS CABL",16/08/2023,0183654,"2,100.00",Revenue,Paul K Sound & Vision,16607,,
Chorley Borough Council,http://statistics.data.gov.uk/id/local-authority/30UE,Tourism,1039,GOVN - Policy & Governance,Tools & Equipment - Hire,40004,"Equipment, Furniture & Materia",5023,"SUPPLY PA SYSTEM AND PRESENTER FOR		, FLOWER SHOW 3 DAYS , 	 	, ELECTRICIAN To rig and derig all marquee		, And vendor power, mai",16/08/2023,0183655,"2,200.00",Revenue,Paul K Sound & Vision,16607,,
Chorley Borough Council,http://statistics.data.gov.uk/id/local-authority/30UE,Tourism,1039,GOVN - Policy & Governance,External Contractor,40198,Miscellaneous Expenses,5034,"QVERNIGHT GET OUT EXTRA CREW FOR	, FLOWER SHOW",16/08/2023,0183656,"1,200.00",Revenue,Paul K Sound & Vision,16607,,
Chorley Borough Council,http://statistics.data.gov.uk/id/local-authority/30UE,Central Support Services,1009,CUST - Customer & Digital,Printing,40043,"Printing, Stationery & General",5026,Garden Waste subscription permits 2023/24,16/08/2023,0183593,696.46,Revenue,Permiserv Ltd,77202,,
Chorley Borough Council,http://statistics.data.gov.uk/id/local-authority/30UE,Culture & Heritage,1036,GOVN - Policy & Governance,Souvenirs,40033,"Equipment, Furniture & Materia",5023,"Product Name	Product Code	Quantity	Price Per Unit	Price Per line, Gor Flex Flying Frizbee (20cm) Blue/Red | GorPets	GF18	20	3.50",09/08/2023,0183412,833.61,Revenue,PetDreamHouse Ltd,89420,,
Chorley Borough Council,http://statistics.data.gov.uk/id/local-authority/30UE,Control Accounts,Control,GOVN - Policy & Governance,Manual Control Account,00001,Balance Sheet,Balance,Refund,02/08/2023,CRREF97,"3,926.16",Revenue,Pick Everard,76515,,
Chorley Borough Council,http://statistics.data.gov.uk/id/local-authority/30UE,Central Support Services,1009,CUST - Customer & Digital,Consultants` Fees,40077,Services,5027,"Contract work to assist with planning enforcement, Contractor: NAME REDACTED Time period: 1 April 2023  31 March 2024",02/08/2023,0183111,"1,387.00",Revenue,Planning and PACE Solutions Ltd,82083,,
Chorley Borough Council,http://statistics.data.gov.uk/id/local-authority/30UE,Precepts and Collection Fund,Precepts,GOVN - Policy & Governance,LPA Precept,02010,Precepts & Collection Fund,Precept,PCC CTax precepts,02/08/2023,0181066,"953,889.00",Revenue,Police & Crime Commissioner,17438,,
Chorley Borough Council,http://statistics.data.gov.uk/id/local-authority/30UE,Precepts and Collection Fund,Precepts,GOVN - Policy & Governance,LPA Precept,02010,Precepts & Collection Fund,Precept,PCC CTax precept,02/08/2023,0182498,"953,889.00",Revenue,Police & Crime Commissioner,17438,,
Chorley Borough Council,http://statistics.data.gov.uk/id/local-authority/30UE,Tourism,1039,GOVN - Policy & Governance,Publicity - Advertising,40157,Miscellaneous Expenses,5034,M61 Banner CFS,02/08/2023,0183268,"1,170.00",Revenue,Poppy Signs Ltd,21898,,
Chorley Borough Council,http://statistics.data.gov.uk/id/local-authority/30UE,Central Support Services,1009,PLAN - Planning & Development,Safety Signs And Posters,40017,"Equipment, Furniture & Materia",5023,60 A3 Dog Fouling Signs on 10mm Correx Board as per quote KM19125/1,16/08/2023,0183615,690.84,Revenue,Poppy Signs Ltd,21898,,
Chorley Borough Council,http://statistics.data.gov.uk/id/local-authority/30UE,Tourism,1039,GOVN - Policy & Governance,Safety Signs And Posters,40017,"Equipment, Furniture & Materia",5023,"New print applied over the previous metal boards, Light block adhesive, matte laminate, Batch of 3 x A0 , Batch of 2 x A1, PLUS, ",16/08/2023,0183719,652.82,Revenue,Poppy Signs Ltd,21898,,
Chorley Borough Council,http://statistics.data.gov.uk/id/local-authority/30UE,Corporate Management,1008,GOVN - Policy & Governance,Corp Training Organisational Development,17006,Indirect Employee Expenses,5002,Graduate Development Programme July 2023,09/08/2023,0183373,600.00,Revenue,Potential Unearthed,22243,,
Chorley Borough Council,http://statistics.data.gov.uk/id/local-authority/30UE,Control Accounts,Control,GROW - Commercial Services,Manual Control Account,00001,Balance Sheet,Balance,,23/08/2023,0184073,"3,212.71",Revenue,Poundland Ltd,89473,,
Chorley Borough Council,http://statistics.data.gov.uk/id/local-authority/30UE,Development Control,1091,PLAN - Planning & Development,Agency Staff,13000,Direct Employee Expenses,5001,"Planning consulting advice, including the consideration and determination of planning applications, Time period: 24 July 2023 - 3",09/08/2023,0183568,"1,665.00",Revenue,Power Planning Consulting Ltd,89435,,
Chorley Borough Council,http://statistics.data.gov.uk/id/local-authority/30UE,Development Control,1091,PLAN - Planning & Development,Agency Staff,13000,Direct Employee Expenses,5001,"Planning consulting advice, including the consideration and determination of planning applications, Time period: 24 July 2023 - 3",09/08/2023,0183572,"1,665.00",Revenue,Power Planning Consulting Ltd,89435,,
Chorley Borough Council,http://statistics.data.gov.uk/id/local-authority/30UE,Development Control,1091,PLAN - Planning & Development,Agency Staff,13000,Direct Employee Expenses,5001,"Planning consulting advice, including the consideration and determination of planning applications, Time period: 24 July 2023 - 3",16/08/2023,0183817,"1,665.00",Revenue,Power Planning Consulting Ltd,89435,,
Chorley Borough Council,http://statistics.data.gov.uk/id/local-authority/30UE,Capital,Capital,EARL - Communities,Grants,03002,Capital Expenditure,Capital,Handyperson service Q2 2023/24 payable from DFG budget,23/08/2023,0183984,"6,250.00",Capital,Preston Care and Repair,50018,,
Chorley Borough Council,http://statistics.data.gov.uk/id/local-authority/30UE,Elections,1012,GOVN - Policy & Governance,Postages,40082,Communication and Computing,5028,CCA mailings for canvass 2023,09/08/2023,0183366,"18,427.82",Revenue,Print Image Facilities LLP,57870,,
Chorley Borough Council,http://statistics.data.gov.uk/id/local-authority/30UE,Elections,1012,GOVN - Policy & Governance,Postages,40082,Communication and Computing,5028,postage for poll cards by election,30/08/2023,0183983,"5,677.84",Revenue,Print Image Facilities LLP,57870,,
Chorley Borough Council,http://statistics.data.gov.uk/id/local-authority/30UE,Elections,1012,GOVN - Policy & Governance,Postages,40082,Communication and Computing,5028,CCB mailings for canvass 2023,30/08/2023,0184180,"6,473.17",Revenue,Print Image Facilities LLP,57870,,
Chorley Borough Council,http://statistics.data.gov.uk/id/local-authority/30UE,Other Short Term Creditors,,GOVN - Policy & Governance,General Balances,00100,Balance Sheet,Balance,Prudential - July 23 Monthly Deductions from payroll,16/08/2023,0183865,"1,500.00",Revenue,PRUDENTIAL,18178,,
Chorley Borough Council,http://statistics.data.gov.uk/id/local-authority/30UE,Other Short Term Creditors,,GOVN - Policy & Governance,General Balances,00100,Balance Sheet,Balance,Prudential AVC Wise - July 23 Monthly Deductions from payroll,16/08/2023,0183910,"10,008.23",Revenue,PRUDENTIAL,18178,,
Chorley Borough Council,http://statistics.data.gov.uk/id/local-authority/30UE,Interest Payable on Debt,1020,GOVN - Policy & Governance,Interest Payable,09009,Interest Payments,5067,interest LN 502694,02/08/2023,0181137,"33,979.11",Revenue,Public Works Loans Board,21480,,
Chorley Borough Council,http://statistics.data.gov.uk/id/local-authority/30UE,Interest Payable on Debt,1020,GOVN - Policy & Governance,Interest Payable,09009,Interest Payments,5067,interest LN 502695,02/08/2023,0181137,"33,211.28",Revenue,Public Works Loans Board,21480,,
Chorley Borough Council,http://statistics.data.gov.uk/id/local-authority/30UE,Interest Payable on Debt,1020,GOVN - Policy & Governance,Interest Payable,09009,Interest Payments,5067,interest LN 502696,02/08/2023,0181137,"29,216.18",Revenue,Public Works Loans Board,21480,,
Chorley Borough Council,http://statistics.data.gov.uk/id/local-authority/30UE,Interest Payable on Debt,1020,GOVN - Policy & Governance,Interest Payable,09009,Interest Payments,5067,interest LN 502697,02/08/2023,0181137,"22,440.45",Revenue,Public Works Loans Board,21480,,
Chorley Borough Council,http://statistics.data.gov.uk/id/local-authority/30UE,Interest Payable on Debt,1020,GOVN - Policy & Governance,Interest Payable,09009,Interest Payments,5067,interest LN 502698,02/08/2023,0181137,"13,419.44",Revenue,Public Works Loans Board,21480,,
Chorley Borough Council,http://statistics.data.gov.uk/id/local-authority/30UE,Interest Payable on Debt,1020,GOVN - Policy & Governance,Interest Payable,09009,Interest Payments,5067,interest LN 502699,02/08/2023,0181137,"1,377.27",Revenue,Public Works Loans Board,21480,,
Chorley Borough Council,http://statistics.data.gov.uk/id/local-authority/30UE,Interest Payable on Debt,1020,GOVN - Policy & Governance,Interest Payable,09009,Interest Payments,5067,Interest LN 506764,02/08/2023,0182124,"28,875.00",Revenue,Public Works Loans Board,21480,,
Chorley Borough Council,http://statistics.data.gov.uk/id/local-authority/30UE,Interest Payable on Debt,1020,GOVN - Policy & Governance,Interest Payable,09009,Interest Payments,5067,Interest LN 506766,02/08/2023,0182124,"14,142.86",Revenue,Public Works Loans Board,21480,,
Chorley Borough Council,http://statistics.data.gov.uk/id/local-authority/30UE,Interest Payable on Debt,1020,GOVN - Policy & Governance,Interest Payable,09009,Interest Payments,5067,interest LN 508381,02/08/2023,0182898,"33,347.14",Revenue,Public Works Loans Board,21480,,
Chorley Borough Council,http://statistics.data.gov.uk/id/local-authority/30UE,Interest Payable on Debt,1020,GOVN - Policy & Governance,Interest Payable,09009,Interest Payments,5067,interest LN 508382,02/08/2023,0182898,"34,830.00",Revenue,Public Works Loans Board,21480,,
Chorley Borough Council,http://statistics.data.gov.uk/id/local-authority/30UE,Capital,Capital,PLAN - Planning & Development,Main Contractor,03007,Capital Expenditure,Capital,Construction of Changing Facility at King George V Playing Fields. Original contract value of 939165.78 minus 84950 invoiced and ,16/08/2023,0183818,"142,630.07",Capital,Pulse Design and Build Ltd,85602,,
Chorley Borough Council,http://statistics.data.gov.uk/id/local-authority/30UE,Culture & Heritage,1036,GOVN - Policy & Governance,Professional Fees,14011,Direct Employee Expenses,5001,Performance fee for Wind in the Willows 13th July 2023,09/08/2023,0183570,904.40,Revenue,Quantum Theatre,21420,,
Chorley Borough Council,http://statistics.data.gov.uk/id/local-authority/30UE,Regulatory Services,1048,PLAN - Planning & Development,Taxi Testing & Vehicle Safety Report,40234,Services,5027,taxi tests,09/08/2023,0183490,518.80,Revenue,R.C.J Motors,63625,,
Chorley Borough Council,http://statistics.data.gov.uk/id/local-authority/30UE,Business Support,1095,GROW - Commercial Services,General Repairs - Reactive,20004,Repairs Maintenance & Alts,5005,To be credited,23/08/2023,0182117,532.74,Revenue,Rentokil,76639,,
Chorley Borough Council,http://statistics.data.gov.uk/id/local-authority/30UE,Control Accounts,Control,GOVN - Policy & Governance,General Balances,00100,Balance Sheet,Balance,CCV Vouchers,02/08/2023,0181067,"1,024.00",Revenue,Reward Gateway (UK) Ltd,66814,,
Chorley Borough Council,http://statistics.data.gov.uk/id/local-authority/30UE,Control Accounts,Control,GOVN - Policy & Governance,General Balances,00100,Balance Sheet,Balance,28th july 23,02/08/2023,0183350,"1,024.00",Revenue,Reward Gateway (UK) Ltd,66814,,
Chorley Borough Council,http://statistics.data.gov.uk/id/local-authority/30UE,Homelessness,1075,EARL - Communities,Other Contributions,40145,Grants and Subscriptions,5031,"ADDRESS REDACTED, Boiler replacement",09/08/2023,0181781,"1,970.00",Revenue,Rhea Projects Ltd,77753,,
Chorley Borough Council,http://statistics.data.gov.uk/id/local-authority/30UE,Homelessness,1075,EARL - Communities,Other Contributions,40145,Grants and Subscriptions,5031,"ADDRESS REDACTED, Boiler replacement",09/08/2023,0182260,"1,970.00",Revenue,Rhea Projects Ltd,77753,,
Chorley Borough Council,http://statistics.data.gov.uk/id/local-authority/30UE,Homelessness,1075,EARL - Communities,Other Contributions,40145,Grants and Subscriptions,5031,"ADDRESS REDACTED, Boiler replacement",09/08/2023,0182683,"2,245.00",Revenue,Rhea Projects Ltd,77753,,
Chorley Borough Council,http://statistics.data.gov.uk/id/local-authority/30UE,Homelessness,1075,EARL - Communities,Other Contributions,40145,Grants and Subscriptions,5031,"ADDRESS REDACTED, Boiler replacement",09/08/2023,0182684,"2,120.00",Revenue,Rhea Projects Ltd,77753,,
Chorley Borough Council,http://statistics.data.gov.uk/id/local-authority/30UE,Homelessness,1075,EARL - Communities,Other Contributions,40145,Grants and Subscriptions,5031,"ADDRESS REDACTED, Boiler replacement + 1 new radiator",09/08/2023,0182685,"2,320.00",Revenue,Rhea Projects Ltd,77753,,
Chorley Borough Council,http://statistics.data.gov.uk/id/local-authority/30UE,Homelessness,1075,EARL - Communities,Other Contributions,40145,Grants and Subscriptions,5031,"ADDRESS REDACTED, Boiler replacement",09/08/2023,0182686,"1,995.00",Revenue,Rhea Projects Ltd,77753,,
Chorley Borough Council,http://statistics.data.gov.uk/id/local-authority/30UE,Homelessness,1075,EARL - Communities,Other Contributions,40145,Grants and Subscriptions,5031,"ADDRESS REDACTED, Boiler replacement",09/08/2023,0182687,"1,970.00",Revenue,Rhea Projects Ltd,77753,,
Chorley Borough Council,http://statistics.data.gov.uk/id/local-authority/30UE,Homelessness,1075,EARL - Communities,Other Contributions,40145,Grants and Subscriptions,5031,"ADDRESS REDACTED, Boiler replacement",09/08/2023,0182688,"1,970.00",Revenue,Rhea Projects Ltd,77753,,
Chorley Borough Council,http://statistics.data.gov.uk/id/local-authority/30UE,Homelessness,1075,EARL - Communities,Other Contributions,40145,Grants and Subscriptions,5031,"ADDRESS REDACTED, Window replacement",09/08/2023,0183378,"1,140.94",Revenue,Rhea Projects Ltd,77753,,
Chorley Borough Council,http://statistics.data.gov.uk/id/local-authority/30UE,Homelessness,1075,EARL - Communities,Other Contributions,40145,Grants and Subscriptions,5031,"ADDRESS REDACTED, Boiler replacement",23/08/2023,0183771,"2,475.00",Revenue,Rhea Projects Ltd,77753,,
Chorley Borough Council,http://statistics.data.gov.uk/id/local-authority/30UE,Homelessness,1075,EARL - Communities,Other Contributions,40145,Grants and Subscriptions,5031,"ADDRESS REDACTED, 3 windows + lintels",30/08/2023,0184117,"1,390.00",Revenue,Rhea Projects Ltd,77753,,
Chorley Borough Council,http://statistics.data.gov.uk/id/local-authority/30UE,Homelessness,1075,EARL - Communities,Other Contributions,40145,Grants and Subscriptions,5031,"ADDRESS REDACTED, Glazing improvements - 3x window replacements and two new lintel",30/08/2023,0184118,"1,975.00",Revenue,Rhea Projects Ltd,77753,,
Chorley Borough Council,http://statistics.data.gov.uk/id/local-authority/30UE,Homelessness,1075,EARL - Communities,Other Contributions,40145,Grants and Subscriptions,5031,"ADDRESS REDACTED, Back door replacement",30/08/2023,0184119,"2,640.00",Revenue,Rhea Projects Ltd,77753,,
Chorley Borough Council,http://statistics.data.gov.uk/id/local-authority/30UE,Non Domestic Rates Redistribut,,GOVN - Policy & Governance,Tariff to Business Rates Pool,49002,Expenditure not in NCOS,,lancs bus rates pool,02/08/2023,0180848,"677,356.00",Revenue,Ribble Valley Borough Council DIRECT DEBIT ONLY,21100,,
Chorley Borough Council,http://statistics.data.gov.uk/id/local-authority/30UE,Non Domestic Rates Redistribut,,GOVN - Policy & Governance,Tariff to Business Rates Pool,49002,Expenditure not in NCOS,,Lancs Bus rates relief,02/08/2023,0182125,"677,356.00",Revenue,Ribble Valley Borough Council DIRECT DEBIT ONLY,21100,,
Chorley Borough Council,http://statistics.data.gov.uk/id/local-authority/30UE,Non Domestic Rates Redistribut,,GOVN - Policy & Governance,Tariff to Business Rates Pool,49002,Expenditure not in NCOS,,lancs BRates pool,02/08/2023,0183103,"677,356.00",Revenue,Ribble Valley Borough Council DIRECT DEBIT ONLY,21100,,
Chorley Borough Council,http://statistics.data.gov.uk/id/local-authority/30UE,Homelessness,1075,EARL - Communities,Grants - Tenant Participation,40142,Grants and Subscriptions,5031,,16/08/2023,0183787,500.00,Revenue,Richard Palin,85421,,
Chorley Borough Council,http://statistics.data.gov.uk/id/local-authority/30UE,Central Support Services,1009,CUST - Customer & Digital,Other Fees,40212,Miscellaneous Expenses,5034,Ongoing Ricoh machine rental costs shared Chorley/SRBC,30/08/2023,0184177,661.54,Revenue,Ricoh UK Ltd,17126,,
Chorley Borough Council,http://statistics.data.gov.uk/id/local-authority/30UE,Service Management & Support,1009,CUST - Customer & Digital,Supplies-Grounds Maintenance,40025,"Equipment, Furniture & Materia",5023,"Suplly Solufeed 15-0-25, 20kg x 18 bags . Deliver to Bengal St depot",23/08/2023,0183480,891.00,Revenue,Rigby Taylor Ltd,16299,,
Chorley Borough Council,http://statistics.data.gov.uk/id/local-authority/30UE,Service Management & Support,1009,CUST - Customer & Digital,Supplies-Grounds Maintenance,40025,"Equipment, Furniture & Materia",5023,Supply 20 x 10litre impact line marker. Deliver to Bengal St depot,23/08/2023,0183516,558.00,Revenue,Rigby Taylor Ltd,16299,,
Chorley Borough Council,http://statistics.data.gov.uk/id/local-authority/30UE,Capital,Capital,GROW - Commercial Services,Other Capital Related Fees,03024,Capital Expenditure,Capital,1 x iVent Instant Coffee Machine.,23/08/2023,0183835,"6,250.00",Capital,Rijo 42 Machines Limited,17576,,
Chorley Borough Council,http://statistics.data.gov.uk/id/local-authority/30UE,Tourism,1039,GOVN - Policy & Governance,Professional Fees,40063,Services,5027,6 x Traffic Management Operative`s to manage the one-way system on Chancery Road for the Picnic in the Park event on Saturday 6 M,02/08/2023,0181219,"1,680.00",Revenue,Road Safety Services Ltd,69457,,
Chorley Borough Council,http://statistics.data.gov.uk/id/local-authority/30UE,Tourism,1039,GOVN - Policy & Governance,Professional Fees,40063,Services,5027,To be credited by 900855,02/08/2023,0181219,"1,200.00",Revenue,Road Safety Services Ltd,69457,,
Chorley Borough Council,http://statistics.data.gov.uk/id/local-authority/30UE,Tourism,1039,GOVN - Policy & Governance,Professional Fees,40063,Services,5027,2 x traffic management stewards with a vehicle to manage parking on the one-way system on Chancery Road for the Chorley Flower Sh,09/08/2023,0183372,"2,022.00",Revenue,Road Safety Services Ltd,69457,,
Chorley Borough Council,http://statistics.data.gov.uk/id/local-authority/30UE,Tourism,1039,GOVN - Policy & Governance,Furniture - Hire,40013,"Equipment, Furniture & Materia",5023,Extra equipment and labour,09/08/2023,0183563,875.00,Revenue,RPM Events,70613,,
Chorley Borough Council,http://statistics.data.gov.uk/id/local-authority/30UE,Planning Policy,1092,PLAN - Planning & Development,Consultants` Fees,40077,Services,5027,"Central Lancashire Local Plan GIS Support, Key outputs plus reactive GIS Mapping work linked to the preparation of the Central La",09/08/2023,0183371,800.00,Revenue,Salford GIS Ltd,16684,,
Chorley Borough Council,http://statistics.data.gov.uk/id/local-authority/30UE,Tourism,1039,GOVN - Policy & Governance,Professional Fees,40063,Services,5027,"Performance at Chorley Flower Show Fri, Sat and Sunday",09/08/2023,0183327,"1,200.00",Revenue,Sambafriq,21441,,
Chorley Borough Council,http://statistics.data.gov.uk/id/local-authority/30UE,Homelessness,1075,GROW - Commercial Services,Storage Costs,40256,Miscellaneous Expenses,5034,For the extra security which was needed for winter watch that was extended from April to the beginning of June 2023,30/08/2023,0180204,"4,596.75",Revenue,Secure FM Ltd,86928,,
Chorley Borough Council,http://statistics.data.gov.uk/id/local-authority/30UE,Homelessness,1075,GROW - Commercial Services,Storage Costs,40256,Miscellaneous Expenses,5034,For the extra security which was needed for winter watch that was extended from April to the beginning of June 2023,30/08/2023,0181111,"4,749.98",Revenue,Secure FM Ltd,86928,,
Chorley Borough Council,http://statistics.data.gov.uk/id/local-authority/30UE,Homelessness,1075,GROW - Commercial Services,Storage Costs,40256,Miscellaneous Expenses,5034,For the extra security which was needed for winter watch that was extended from April to the beginning of June 2023,30/08/2023,0182412,612.90,Revenue,Secure FM Ltd,86928,,
Chorley Borough Council,http://statistics.data.gov.uk/id/local-authority/30UE,Homelessness,1075,GROW - Commercial Services,Security Service,40062,Services,5027,"To provide site concierge services at Cotswold House temporary accommodation facility, hours as outlined , by the premises manage",09/08/2023,0183379,"7,981.32",Revenue,Secure FM Ltd,86928,,
Chorley Borough Council,http://statistics.data.gov.uk/id/local-authority/30UE,Business Support,1095,GROW - Commercial Services,Security Service,40062,Services,5027,"To provide site concierge services at , Tatton Gardens Extra Care facility, , hours as outlined by NAME REDACTED. 7 days",09/08/2023,0183380,"7,988.13",Revenue,Secure FM Ltd,86928,,
Chorley Borough Council,http://statistics.data.gov.uk/id/local-authority/30UE,Business Support,1095,GROW - Commercial Services,Security Service,40062,Services,5027,To provide concierge services at Primrose Gardens Extra Care Facility as outlined by NAME REDACTED 7 days a week. Hourly rate ,23/08/2023,0183409,"7,988.13",Revenue,Secure FM Ltd,86928,,
Chorley Borough Council,http://statistics.data.gov.uk/id/local-authority/30UE,Business Support,1095,GROW - Commercial Services,Security Service,40062,Services,5027,"To provide evening Site Security Services at Market Walk Shopping Centre from 5pm until midnight, 7 days a week. Hourly rate 12.",23/08/2023,0183410,"2,955.54",Revenue,Secure FM Ltd,86928,,
Chorley Borough Council,http://statistics.data.gov.uk/id/local-authority/30UE,Capital,Capital,GROW - Commercial Services,Main Contractor,03007,Capital Expenditure,Capital,CAFE refurbishment Works at All Seasons Leisure Centre,09/08/2023,0183234,"5,773.16",Capital,Singleton and Smart,85371,,
Chorley Borough Council,http://statistics.data.gov.uk/id/local-authority/30UE,Development Control,1091,PLAN - Planning & Development,Professional Fees,40063,Services,5027,"Award Of Costs to Smith Love Planning Consultants in connection with Land Next To 190, Blackburn Road Heapey planning appeal APP/",02/08/2023,0183303,"2,856.00",Revenue,Smith & Love Planning Consultants Ltd,89369,,
Chorley Borough Council,http://statistics.data.gov.uk/id/local-authority/30UE,Business Support,1095,GROW - Commercial Services,Pest Control,20039,Cleaning and Domestic Supplies,5012,To provide Pest Control services for Market Walk: Rats/mice - 8 routine visits per annum including unlimited call outs 800 2 bir,23/08/2023,0182999,"1,313.33",Revenue,South Ribble Borough Council,17889,,
Chorley Borough Council,http://statistics.data.gov.uk/id/local-authority/30UE,Unapportionable Central OHeads,1009,GOVN - Policy & Governance,Service Fees to other Local Authorities,40076,Services,5027,Quarter 1 Recharges 2023/24,09/08/2023,0183515,"807,453.25",Revenue,South Ribble Borough Council,17889,,
Chorley Borough Council,http://statistics.data.gov.uk/id/local-authority/30UE,Business Support,1095,GROW - Commercial Services,Window Cleaning,20034,Cleaning and Domestic Supplies,5012,"Window Cleaning Services and Quarterly Internal Cleaning at Primrose Gardens, From 01.04.23 - 31.03.24",02/08/2023,0183287,660.00,Revenue,Sparkle Window Cleaning (Michael Jennings),77989,,
Chorley Borough Council,http://statistics.data.gov.uk/id/local-authority/30UE,Tourism,1039,GOVN - Policy & Governance,Professional Fees,40063,Services,5027,"Security for FS23 Set up, , Mon 17 - Sun 23 July",09/08/2023,0183432,"2,805.00",Revenue,Spencer Sutcliffe Security Ltd,89425,,
Chorley Borough Council,http://statistics.data.gov.uk/id/local-authority/30UE,Tourism,1039,GOVN - Policy & Governance,Professional Fees,40063,Services,5027,Stewarding for CFS23 day time to assist car parking,23/08/2023,0184063,"2,744.00",Revenue,Spencer Sutcliffe Security Ltd,89425,,
Chorley Borough Council,http://statistics.data.gov.uk/id/local-authority/30UE,Unapportionable Central OHeads,1009,GOVN - Policy & Governance,IT Software - Annual Licences,40101,Communication and Computing,5028,Social media management software,02/08/2023,0182244,"12,516.96",Revenue,Sprout Social,78471,,
Chorley Borough Council,http://statistics.data.gov.uk/id/local-authority/30UE,Corporate Management,1008,EARL - Communities,Other Contributions,40145,Grants and Subscriptions,5031,Household Support Fund 4,30/08/2023,0183850,"13,000.00",Revenue,St Vincent De Paul Society,89415,,
Chorley Borough Council,http://statistics.data.gov.uk/id/local-authority/30UE,Community Development,1097,EARL - Communities,Core Funding Grants,40133,Grants and Subscriptions,5031,Delivery of commissioned services - 1st payment - Food poverty,30/08/2023,0183852,"3,750.00",Revenue,St Vincent De Paul Society,89415,,
Chorley Borough Council,http://statistics.data.gov.uk/id/local-authority/30UE,Community Development,1097,EARL - Communities,Core Funding Grants,40133,Grants and Subscriptions,5031,delivery of commissioned services - 1st payment,30/08/2023,0183853,"5,000.00",Revenue,St Vincent De Paul Society,89415,,
Chorley Borough Council,http://statistics.data.gov.uk/id/local-authority/30UE,Service Management & Support,1009,CUST - Customer & Digital,Diesel/Derv,30007,Direct Transport Costs,5016,"As per chest procurement, 7000 litres of road diesel, 2000 litres of gas oil",02/08/2023,0182717,"1,404.00",Revenue,Standard Fuel Oils,85167,,
Chorley Borough Council,http://statistics.data.gov.uk/id/local-authority/30UE,Service Management & Support,1009,CUST - Customer & Digital,Diesel/Derv,30007,Direct Transport Costs,5016,"As per chest procurement, 7000 litres of road diesel, 2000 litres of gas oil",02/08/2023,0182718,"7,877.27",Revenue,Standard Fuel Oils,85167,,
Chorley Borough Council,http://statistics.data.gov.uk/id/local-authority/30UE,Service Management & Support,1009,CUST - Customer & Digital,Diesel/Derv,30007,Direct Transport Costs,5016,As per Chest procurement 6500 Litres road diesel,16/08/2023,0183367,"7,472.40",Revenue,Standard Fuel Oils,85167,,
Chorley Borough Council,http://statistics.data.gov.uk/id/local-authority/30UE,Service Management & Support,1009,CUST - Customer & Digital,Diesel/Derv,30007,Direct Transport Costs,5016,7000 litres of road diesel as procured via the chest,30/08/2023,0184204,"8,791.29",Revenue,Standard Fuel Oils,85167,,
Chorley Borough Council,http://statistics.data.gov.uk/id/local-authority/30UE,Unapportionable Central OHeads,1009,GROW - Commercial Services,General Repairs - Reactive,20004,Repairs Maintenance & Alts,5005,Engineering Services Quote 01 - 2022Provision of agreed general engineering services1st September 2022 to 31st March 2023,02/08/2023,0183043,956.85,Revenue,Street Civil Engineering Limited,76750,,
Chorley Borough Council,http://statistics.data.gov.uk/id/local-authority/30UE,Unapportionable Central OHeads,1009,GROW - Commercial Services,General Repairs - Reactive,20004,Repairs Maintenance & Alts,5005,Engineering Services Quote 01 - 2022 Provision of agreed general engineering services 1st September 2022 to 31st March 2023,02/08/2023,0183101,"1,351.92",Revenue,Street Civil Engineering Limited,76750,,
Chorley Borough Council,http://statistics.data.gov.uk/id/local-authority/30UE,Capital,Capital,EARL - Communities,Grants,03002,Capital Expenditure,Capital,22/00121/DFG NAME REDACTED,16/08/2023,0183641,"2,000.00",Capital,Stringfellow Bldg Cntrctrs Ltd,17893,,
Chorley Borough Council,http://statistics.data.gov.uk/id/local-authority/30UE,Capital,Capital,EARL - Communities,Grants,03002,Capital Expenditure,Capital,22/00177/CAG,16/08/2023,0183737,"8,435.00",Capital,Stringfellow Bldg Cntrctrs Ltd,17893,,
Chorley Borough Council,http://statistics.data.gov.uk/id/local-authority/30UE,Capital,Capital,EARL - Communities,Grants,03002,Capital Expenditure,Capital,"22/00177/DFG, NAME REDACTED, ADDRESS REDACTED",23/08/2023,0183928,"3,200.00",Capital,Stringfellow Bldg Cntrctrs Ltd,17893,,
Chorley Borough Council,http://statistics.data.gov.uk/id/local-authority/30UE,Service Management & Support,1009,CUST - Customer & Digital,Refuse Collection,20037,Cleaning and Domestic Supplies,5012,"Exchange 35 yard General Waste Skip @ , 89.94, to cover period 01/04/2022 - 31/03/2023",30/08/2023,0181805,"1,691.04",Revenue,SUEZ R&R UK LTD,17615,,
Chorley Borough Council,http://statistics.data.gov.uk/id/local-authority/30UE,Service Management & Support,1009,CUST - Customer & Digital,Refuse Collection,20037,Cleaning and Domestic Supplies,5012,Exchange 20 yard Street Sweepings Skip @ 82.26 each,23/08/2023,0183408,"2,347.84",Revenue,SUEZ R&R UK LTD,17615,,
Chorley Borough Council,http://statistics.data.gov.uk/id/local-authority/30UE,Service Management & Support,1009,CUST - Customer & Digital,Refuse Collection,20037,Cleaning and Domestic Supplies,5012,Exchange 35 yard General Waste Skip @ 101.86 each,23/08/2023,0183408,809.46,Revenue,SUEZ R&R UK LTD,17615,,
Chorley Borough Council,http://statistics.data.gov.uk/id/local-authority/30UE,Homelessness,1075,EARL - Communities,Grants - Tenant Participation,40142,Grants and Subscriptions,5031,,16/08/2023,0183788,500.00,Revenue,Susan McGuigan,85422,,
Chorley Borough Council,http://statistics.data.gov.uk/id/local-authority/30UE,Homelessness,1075,EARL - Communities,Grants - Tenant Participation,40142,Grants and Subscriptions,5031,,16/08/2023,0183791,500.00,Revenue,Susan Ranson,85499,,
Chorley Borough Council,http://statistics.data.gov.uk/id/local-authority/30UE,Central Support Services,1009,EARL - Communities,Training Course Fees,17010,Indirect Employee Expenses,5002,NAME REDACTED Training,23/08/2023,0183895,"10,000.00",Revenue,Suzy Lamplugh Trust,88431,,
Chorley Borough Council,http://statistics.data.gov.uk/id/local-authority/30UE,Central Support Services,1009,EARL - Communities,Training Course Fees,17010,Indirect Employee Expenses,5002,Training fees,23/08/2023,0183897,"11,000.00",Revenue,Suzy Lamplugh Trust,88431,,
Chorley Borough Council,http://statistics.data.gov.uk/id/local-authority/30UE,Central Support Services,1009,EARL - Communities,Misc Expenses,40200,Miscellaneous Expenses,5034,Adult Health and Wellbeing Grant Fund,30/08/2023,0184247,"2,600.00",Revenue,SVP Chorley Buddies,82307,,
Chorley Borough Council,http://statistics.data.gov.uk/id/local-authority/30UE,Central Support Services,1009,EARL - Communities,Alleygate Repair,40240,"Equipment, Furniture & Materia",5023,Annual expenditure for alleygate repairs,23/08/2023,0183759,764.00,Revenue,T B & B Anderton,83517,,
Chorley Borough Council,http://statistics.data.gov.uk/id/local-authority/30UE,Central Support Services,1009,CUST - Customer & Digital,CCTV Camera Maintenance,40007,"Equipment, Furniture & Materia",5023,Miscellaneous camera repairs,02/08/2023,0180004,958.94,Revenue,Technology Solutions,72376,,
Chorley Borough Council,http://statistics.data.gov.uk/id/local-authority/30UE,Central Support Services,1009,CUST - Customer & Digital,CCTV Camera Maintenance,40007,"Equipment, Furniture & Materia",5023,Miscellaneous camera repairs,09/08/2023,0183368,"2,012.50",Revenue,Technology Solutions,72376,,
Chorley Borough Council,http://statistics.data.gov.uk/id/local-authority/30UE,Central Support Services,1009,CUST - Customer & Digital,CCTV Camera Maintenance,40007,"Equipment, Furniture & Materia",5023,Miscellaneous camera repairs,16/08/2023,0183665,570.00,Revenue,Technology Solutions,72376,,
Chorley Borough Council,http://statistics.data.gov.uk/id/local-authority/30UE,Central Support Services,1009,GOVN - Policy & Governance,Legal Fees,40171,Miscellaneous Expenses,5034,ProContract subscription license fee for: Procurement system Licence payment for 1 year.,16/08/2023,0183609,"2,310.00",Revenue,TET Limited t/a Trans European Technology,89422,,
Chorley Borough Council,http://statistics.data.gov.uk/id/local-authority/30UE,Business Support,1095,GROW - Commercial Services,Legal Fees,40171,Miscellaneous Expenses,5034,"Provision of SIA Security Officers @ SFDOP, July 2023",16/08/2023,0183566,"8,258.09",Revenue,The ExcluSec Group Ltd,78056,,
Chorley Borough Council,http://statistics.data.gov.uk/id/local-authority/30UE,Tourism,1039,GOVN - Policy & Governance,Professional Fees,40063,Services,5027,Chorley Flower Show 2023 - Flower People (two flower people) Performance fees: 760 per day Travel expenses: 120 Hotel expenses:,16/08/2023,0176769,"2,650.00",Revenue,The Human Hedges and Theatre Illumiere,84869,,
Chorley Borough Council,http://statistics.data.gov.uk/id/local-authority/30UE,Capital,Capital,GROW - Commercial Services,Main Contractor,03007,Capital Expenditure,Capital,,02/08/2023,0182732,"82,180.96",Capital,The Kitchen Appliance Centre,87251,,
Chorley Borough Council,http://statistics.data.gov.uk/id/local-authority/30UE,Tourism,1039,GOVN - Policy & Governance,Professional Fees,40063,Services,5027,CFS Prize Money,23/08/2023,0184009,521.50,Revenue,The National Sweet Pea Society,71521,,
Chorley Borough Council,http://statistics.data.gov.uk/id/local-authority/30UE,Central Support Services,1009,CUST - Customer & Digital,IT Consultancy Fees,40223,Services,5027,"Tatton Gardens PS Days, , 2 x PS Days for Switch & WAN Circuit Install 2 x 785.00 1,570.00, Scope of Works:, PS covers on-site ",02/08/2023,0182369,"1,177.50",Revenue,The Networking People (NorthWest) Ltd T/a TNP Ltd,73446,,
Chorley Borough Council,http://statistics.data.gov.uk/id/local-authority/30UE,Central Support Services,1009,CUST - Customer & Digital,Computer Equipment-Maintenance,40105,Communication and Computing,5028,Aps for Tatton,02/08/2023,0182694,"3,197.00",Revenue,The Networking People (NorthWest) Ltd T/a TNP Ltd,73446,,
Chorley Borough Council,http://statistics.data.gov.uk/id/local-authority/30UE,Central Support Services,1009,CUST - Customer & Digital,Computer Equipment-Maintenance,40105,Communication and Computing,5028,"Renewal of support on Cisco devices, , SNTC-8X5XNBD - Cisco Smartnet Support - Identity Services Engine Hardware 2 x 2,114.28 4,",02/08/2023,0182814,"11,919.58",Revenue,The Networking People (NorthWest) Ltd T/a TNP Ltd,73446,,
Chorley Borough Council,http://statistics.data.gov.uk/id/local-authority/30UE,Democratic Represent and  Mgnt,1007,GOVN - Policy & Governance,Printing of Year Book,40045,"Printing, Stationery & General",5026,"100 diary booklets, vanilla 180gsm card cover printed in colour front and black reverse, matt laminated, all 80 inner pages black",02/08/2023,0181283,"1,045.00",Revenue,The Print Quarter,17987,,
Chorley Borough Council,http://statistics.data.gov.uk/id/local-authority/30UE,Homelessness,1075,EARL - Communities,Grants - Tenant Participation,40142,Grants and Subscriptions,5031,,16/08/2023,0183792,500.00,Revenue,Timothy Philips,85423,,
Chorley Borough Council,http://statistics.data.gov.uk/id/local-authority/30UE,Parking Services,1066,GROW - Commercial Services,External Contractors,50008,Private Contractors,5042,Outstanding Debt Registration Costs,30/08/2023,0184121,"1,000.00",Revenue,Traffic Enforcement Centre,22350,,
Chorley Borough Council,http://statistics.data.gov.uk/id/local-authority/30UE,Development Control,1091,PLAN - Planning & Development,Professional Fees,40063,Services,5027,Undertaking a review of a viability appraisal. The service provider is Continuum.,02/08/2023,0182472,"2,000.00",Revenue,Trebbi Continuum,77723,,
Chorley Borough Council,http://statistics.data.gov.uk/id/local-authority/30UE,Development Control,1091,PLAN - Planning & Development,Professional Fees,40063,Services,5027,Undertaking a review of a viability appraisal. The service provider is Continuum.,09/08/2023,0183359,"1,000.00",Revenue,Trebbi Continuum,77723,,
Chorley Borough Council,http://statistics.data.gov.uk/id/local-authority/30UE,Service Management & Support,1009,CUST - Customer & Digital,Grounds Maintenance Contractor,20043,Grounds Maintenance Costs,5013,"Dog Trap Wood, Fell mature Beech",02/08/2023,0183046,980.00,Revenue,Treescape North West Ltd,17688,,
Chorley Borough Council,http://statistics.data.gov.uk/id/local-authority/30UE,Service Management & Support,1009,CUST - Customer & Digital,Grounds Maintenance Contractor,20043,Grounds Maintenance Costs,5013,"ADDRESS REDACTED, Reduce height and width of conifers.",02/08/2023,0183047,860.00,Revenue,Treescape North West Ltd,17688,,
Chorley Borough Council,http://statistics.data.gov.uk/id/local-authority/30UE,Service Management & Support,1009,CUST - Customer & Digital,Grounds Maintenance Contractor,20043,Grounds Maintenance Costs,5013,Queens Rd Car Parl. Monolith Sycamore,23/08/2023,0184021,540.00,Revenue,Treescape North West Ltd,17688,,
Chorley Borough Council,http://statistics.data.gov.uk/id/local-authority/30UE,Service Management & Support,1009,CUST - Customer & Digital,Grounds Maintenance Contractor,20043,Grounds Maintenance Costs,5013,A6 Clayton Brook. Reduce Ash and prune conifers,23/08/2023,0184023,840.00,Revenue,Treescape North West Ltd,17688,,
Chorley Borough Council,http://statistics.data.gov.uk/id/local-authority/30UE,Service Management & Support,1009,CUST - Customer & Digital,Grounds Maintenance Contractor,20043,Grounds Maintenance Costs,5013,"Remove snapped out Willow, Carr Brook",23/08/2023,0184055,840.00,Revenue,Treescape North West Ltd,17688,,
Chorley Borough Council,http://statistics.data.gov.uk/id/local-authority/30UE,Service Management & Support,1009,CUST - Customer & Digital,Grounds Maintenance Contractor,20043,Grounds Maintenance Costs,5013,Fell mature triple stemmed Willow in woods near ADDRESS REDACTED,23/08/2023,0184056,840.00,Revenue,Treescape North West Ltd,17688,,
Chorley Borough Council,http://statistics.data.gov.uk/id/local-authority/30UE,Service Management & Support,1009,CUST - Customer & Digital,Grounds Maintenance Contractor,20043,Grounds Maintenance Costs,5013,Invoice 0172,02/08/2023,0183051,"1,210.00",Revenue,Treexpert Tree Care,78580,,
Chorley Borough Council,http://statistics.data.gov.uk/id/local-authority/30UE,Service Management & Support,1009,CUST - Customer & Digital,Grounds Maintenance Contractor,20043,Grounds Maintenance Costs,5013,Invoice 0173,16/08/2023,0183854,740.00,Revenue,Treexpert Tree Care,78580,,
Chorley Borough Council,http://statistics.data.gov.uk/id/local-authority/30UE,Service Management & Support,1009,CUST - Customer & Digital,Grounds Maintenance Contractor,20043,Grounds Maintenance Costs,5013,Invoice 0179,16/08/2023,0183855,780.00,Revenue,Treexpert Tree Care,78580,,
Chorley Borough Council,http://statistics.data.gov.uk/id/local-authority/30UE,Service Management & Support,1009,CUST - Customer & Digital,Grounds Maintenance Contractor,20043,Grounds Maintenance Costs,5013,Invoice 0185 - various works in Astley Park,30/08/2023,0184179,"1,460.00",Revenue,Treexpert Tree Care,78580,,
Chorley Borough Council,http://statistics.data.gov.uk/id/local-authority/30UE,Service Management & Support,1009,CUST - Customer & Digital,Grounds Maintenance Contractor,20043,Grounds Maintenance Costs,5013,Treexpert invoice 0182,30/08/2023,0184181,760.00,Revenue,Treexpert Tree Care,78580,,
Chorley Borough Council,http://statistics.data.gov.uk/id/local-authority/30UE,Elections,1012,GOVN - Policy & Governance,Tools & Equipment - Maintenance,40005,"Equipment, Furniture & Materia",5023,Annual maintenance and support - Mailpost 125 single sided letter opener M020239058,30/08/2023,0184242,534.25,Revenue,Twofold Ltd,77795,,
Chorley Borough Council,http://statistics.data.gov.uk/id/local-authority/30UE,Unapportionable Central OHeads,1009,GOVN - Policy & Governance,Misc Expenses,40200,Miscellaneous Expenses,5034,01 aug 2023,09/08/2023,0183429,"1,444.40",Revenue,UK Healthcare (BDHSC),17241,,
Chorley Borough Council,http://statistics.data.gov.uk/id/local-authority/30UE,Unapportionable Central OHeads,1009,CUST - Customer & Digital,Postages,40082,Communication and Computing,5028,Daily Hybrid Mail & Annual Billing for Account H360363,02/08/2023,0183205,816.04,Revenue,UKMAIL Ltd (Mail),57758,,
Chorley Borough Council,http://statistics.data.gov.uk/id/local-authority/30UE,Unapportionable Central OHeads,1009,CUST - Customer & Digital,Postages,40082,Communication and Computing,5028,Daily Hybrid Mail & Annual Billing for Account H360363,02/08/2023,0183207,934.94,Revenue,UKMAIL Ltd (Mail),57758,,
Chorley Borough Council,http://statistics.data.gov.uk/id/local-authority/30UE,Unapportionable Central OHeads,1009,CUST - Customer & Digital,Postages,40082,Communication and Computing,5028,Daily Hybrid Mail & Annual Billing for Account H360363,16/08/2023,0183591,863.31,Revenue,UKMAIL Ltd (Mail),57758,,
Chorley Borough Council,http://statistics.data.gov.uk/id/local-authority/30UE,Unapportionable Central OHeads,1009,CUST - Customer & Digital,Postages,40082,Communication and Computing,5028,Daily Hybrid Mail & Annual Billing for Account H360363,16/08/2023,0183592,"1,678.65",Revenue,UKMAIL Ltd (Mail),57758,,
Chorley Borough Council,http://statistics.data.gov.uk/id/local-authority/30UE,Unapportionable Central OHeads,1009,CUST - Customer & Digital,Postages,40082,Communication and Computing,5028,Daily Hybrid Mail & Annual Billing for Account H360363,30/08/2023,0184088,"1,182.41",Revenue,UKMAIL Ltd (Mail),57758,,
Chorley Borough Council,http://statistics.data.gov.uk/id/local-authority/30UE,Unapportionable Central OHeads,1009,CUST - Customer & Digital,Postages,40082,Communication and Computing,5028,Daily Hybrid Mail & Annual Billing for Account H360363,30/08/2023,0184089,877.86,Revenue,UKMAIL Ltd (Mail),57758,,
Chorley Borough Council,http://statistics.data.gov.uk/id/local-authority/30UE,Control Accounts,Control,GOVN - Policy & Governance,General Balances,00100,Balance Sheet,Balance,Unify - July 23 Monthly Deductions from payroll,16/08/2023,0183879,905.00,Revenue,Unify Credit Union Ltd,55509,,
Chorley Borough Council,http://statistics.data.gov.uk/id/local-authority/30UE,Capital,Capital,EARL - Communities,Grants,03002,Capital Expenditure,Capital,23/00016/CAG NAME REDACTED,16/08/2023,0183651,"5,665.00",Capital,UPS Building and Maintenance Ltd,76235,,
Chorley Borough Council,http://statistics.data.gov.uk/id/local-authority/30UE,Capital,Capital,EARL - Communities,Grants,03002,Capital Expenditure,Capital,ADDRESS REDACTED,30/08/2023,0184238,"5,170.00",Capital,UPS Building and Maintenance Ltd,76235,,
Chorley Borough Council,http://statistics.data.gov.uk/id/local-authority/30UE,Unapportionable Central OHeads,1009,GROW - Commercial Services,General Repairs - Reactive,20004,Repairs Maintenance & Alts,5005,Cotswold House - reactive specialist cleaning services,09/08/2023,0183407,680.00,Revenue,Veida Contracting Ltd,86955,,
Chorley Borough Council,http://statistics.data.gov.uk/id/local-authority/30UE,Central Support Services,1009,CUST - Customer & Digital,Network Line Rental,40248,Communication and Computing,5028,,23/08/2023,0184067,"3,960.25",Revenue,Virgin Media Payments Ltd,17632,,
Chorley Borough Council,http://statistics.data.gov.uk/id/local-authority/30UE,Central Support Services,1009,EARL - Communities,Agency Staff,13000,Direct Employee Expenses,5001,Consultancy Frees,02/08/2023,0181681,"1,986.00",Revenue,Vivid Resourcing Ltd,76938,,
Chorley Borough Council,http://statistics.data.gov.uk/id/local-authority/30UE,Central Support Services,1009,EARL - Communities,Agency Staff,13000,Direct Employee Expenses,5001,Consultancy Frees,02/08/2023,0181891,"1,017.83",Revenue,Vivid Resourcing Ltd,76938,,
Chorley Borough Council,http://statistics.data.gov.uk/id/local-authority/30UE,Central Support Services,1009,EARL - Communities,Agency Staff,13000,Direct Employee Expenses,5001,Consultancy Frees,02/08/2023,0182218,993.00,Revenue,Vivid Resourcing Ltd,76938,,
Chorley Borough Council,http://statistics.data.gov.uk/id/local-authority/30UE,Development Control,1091,PLAN - Planning & Development,Agency Staff,13000,Direct Employee Expenses,5001,"Contract work to assist with planning application processing, Contractor: NAME REDACTED, Time period: 1 April 2023  31 December 2",09/08/2023,0182692,"1,898.00",Revenue,Vivid Resourcing Ltd,76938,,
Chorley Borough Council,http://statistics.data.gov.uk/id/local-authority/30UE,Development Control,1091,PLAN - Planning & Development,Agency Staff,13000,Direct Employee Expenses,5001,"Contract work to assist with planning application processing, Contractor: NAME REDACTED, Time period: 1 April 2023  31 December 2",02/08/2023,0183010,"1,846.00",Revenue,Vivid Resourcing Ltd,76938,,
Chorley Borough Council,http://statistics.data.gov.uk/id/local-authority/30UE,Central Support Services,1009,GROW - Commercial Services,Agency Staff,13000,Direct Employee Expenses,5001,Agency fees for NAME REDACTED,09/08/2023,0183290,"1,776.25",Revenue,Vivid Resourcing Ltd,76938,,
Chorley Borough Council,http://statistics.data.gov.uk/id/local-authority/30UE,Central Support Services,1009,GROW - Commercial Services,Agency Staff,13000,Direct Employee Expenses,5001,Agency fees for NAME REDACTED,09/08/2023,0183291,"3,662.75",Revenue,Vivid Resourcing Ltd,76938,,
Chorley Borough Council,http://statistics.data.gov.uk/id/local-authority/30UE,Central Support Services,1009,GROW - Commercial Services,Agency Staff,13000,Direct Employee Expenses,5001,Agency fees for NAME REDACTED,09/08/2023,0183292,"1,764.00",Revenue,Vivid Resourcing Ltd,76938,,
Chorley Borough Council,http://statistics.data.gov.uk/id/local-authority/30UE,Development Control,1091,PLAN - Planning & Development,Agency Staff,13000,Direct Employee Expenses,5001,"Contract work to assist with planning application processing, Contractor: NAME REDACTED, Time period: 1 April 2023  31 December 2",09/08/2023,0183302,"1,898.00",Revenue,Vivid Resourcing Ltd,76938,,
Chorley Borough Council,http://statistics.data.gov.uk/id/local-authority/30UE,Central Support Services,1009,GROW - Commercial Services,Agency Staff,13000,Direct Employee Expenses,5001,Agency fees for NAME REDACTED,23/08/2023,0183444,"1,776.25",Revenue,Vivid Resourcing Ltd,76938,,
Chorley Borough Council,http://statistics.data.gov.uk/id/local-authority/30UE,Central Support Services,1009,GROW - Commercial Services,Agency Staff,13000,Direct Employee Expenses,5001,Agency Fees for NAME REDACTED - 12mths,16/08/2023,0183447,885.36,Revenue,Vivid Resourcing Ltd,76938,,
Chorley Borough Council,http://statistics.data.gov.uk/id/local-authority/30UE,Development Control,1091,PLAN - Planning & Development,Agency Staff,13000,Direct Employee Expenses,5001,Contract work to assist with planning application processing Contractor: NAME REDACTED Time period: 1 April 2023  31 December 202,09/08/2023,0183463,"1,326.00",Revenue,Vivid Resourcing Ltd,76938,,
Chorley Borough Council,http://statistics.data.gov.uk/id/local-authority/30UE,Central Support Services,1009,GROW - Commercial Services,Agency Staff,13000,Direct Employee Expenses,5001,Estates surveyor fees for NAME REDACTED as agreed with NAME REDACTED,16/08/2023,0183464,"1,966.25",Revenue,Vivid Resourcing Ltd,76938,,
Chorley Borough Council,http://statistics.data.gov.uk/id/local-authority/30UE,Central Support Services,1009,GROW - Commercial Services,Agency Staff,13000,Direct Employee Expenses,5001,Agency fees for NAME REDACTED,23/08/2023,0183666,"1,139.25",Revenue,Vivid Resourcing Ltd,76938,,
Chorley Borough Council,http://statistics.data.gov.uk/id/local-authority/30UE,Central Support Services,1009,GROW - Commercial Services,Agency Staff,13000,Direct Employee Expenses,5001,Agency Fees for NAME REDACTED - 12mths,23/08/2023,0183667,869.28,Revenue,Vivid Resourcing Ltd,76938,,
Chorley Borough Council,http://statistics.data.gov.uk/id/local-authority/30UE,Development Control,1091,PLAN - Planning & Development,Agency Staff,13000,Direct Employee Expenses,5001,Contract work to assist with planning application processing Contractor: NAME REDACTED Time period: 1 April 2023  31 December 202,16/08/2023,0183686,"1,586.00",Revenue,Vivid Resourcing Ltd,76938,,
Chorley Borough Council,http://statistics.data.gov.uk/id/local-authority/30UE,Development Control,1091,PLAN - Planning & Development,Agency Staff,13000,Direct Employee Expenses,5001,Contract work to assist with planning application processing Contractor: NAME REDACTED Time period: 1 April 2023  31 December 202,23/08/2023,0183921,"1,040.00",Revenue,Vivid Resourcing Ltd,76938,,
Chorley Borough Council,http://statistics.data.gov.uk/id/local-authority/30UE,Central Support Services,1009,CUST - Customer & Digital,Computer Equipment-Maintenance,40105,Communication and Computing,5028,"MVI Software Maintenance Assurance 550.00, Full parts and labour Maintenance 1200.00",02/08/2023,0182410,"1,750.00",Revenue,VP-AV Ltd,81653,,
Chorley Borough Council,http://statistics.data.gov.uk/id/local-authority/30UE,Tourism,1039,GOVN - Policy & Governance,Professional Fees,40063,Services,5027,CFS prize money,23/08/2023,0183996,700.00,Revenue,W Robinson & Son,76211,,
Chorley Borough Council,http://statistics.data.gov.uk/id/local-authority/30UE,Capital,Capital,GROW - Commercial Services,Main Contractor,03007,Capital Expenditure,Capital,Refurb electrical works - installation of new enclosure to mains cupboard,02/08/2023,0180985,550.00,Capital,Walker Gabbott Electrical Ltd,83932,,
Chorley Borough Council,http://statistics.data.gov.uk/id/local-authority/30UE,Unapportionable Central OHeads,1009,GROW - Commercial Services,General Repairs - Reactive,20004,Repairs Maintenance & Alts,5005,Reactive Electrical Repair Works @ Town Hall,16/08/2023,0182113,"6,218.75",Revenue,Walker Gabbott Electrical Ltd,83932,,
Chorley Borough Council,http://statistics.data.gov.uk/id/local-authority/30UE,Unapportionable Central OHeads,1009,GROW - Commercial Services,General Repairs - Reactive,20004,Repairs Maintenance & Alts,5005,Reactive Electrical Repair Works @ Town Hall,16/08/2023,0182114,914.00,Revenue,Walker Gabbott Electrical Ltd,83932,,
Chorley Borough Council,http://statistics.data.gov.uk/id/local-authority/30UE,Unapportionable Central OHeads,1009,GROW - Commercial Services,Planned Maintenance,20006,Repairs Maintenance & Alts,5005,Planned Electrical Maintenance and Remedial Works @ Community Centre`s,02/08/2023,0182405,862.50,Revenue,Walker Gabbott Electrical Ltd,83932,,
Chorley Borough Council,http://statistics.data.gov.uk/id/local-authority/30UE,Unapportionable Central OHeads,1009,GROW - Commercial Services,General Repairs - Reactive,20004,Repairs Maintenance & Alts,5005,Reactive Electrical Repair Works @ Cotswold House,16/08/2023,0182962,"11,901.00",Revenue,Walker Gabbott Electrical Ltd,83932,,
Chorley Borough Council,http://statistics.data.gov.uk/id/local-authority/30UE,Unapportionable Central OHeads,1009,GROW - Commercial Services,General Repairs - Reactive,20004,Repairs Maintenance & Alts,5005,Reactive Electrical Repair Works @ Town Hall,16/08/2023,0182968,"1,292.15",Revenue,Walker Gabbott Electrical Ltd,83932,,
Chorley Borough Council,http://statistics.data.gov.uk/id/local-authority/30UE,Unapportionable Central OHeads,1009,GROW - Commercial Services,General Repairs - Reactive,20004,Repairs Maintenance & Alts,5005,Reactive Electrical Repair Works @ Town Hall,16/08/2023,0183104,"2,100.00",Revenue,Walker Gabbott Electrical Ltd,83932,,
Chorley Borough Council,http://statistics.data.gov.uk/id/local-authority/30UE,Unapportionable Central OHeads,1009,GROW - Commercial Services,Planned Maintenance,20006,Repairs Maintenance & Alts,5005,Covered Market Emergency Lighting Repairs Ref. LH1 5052023-1,16/08/2023,0183547,"3,068.37",Revenue,Walker Gabbott Electrical Ltd,83932,,
Chorley Borough Council,http://statistics.data.gov.uk/id/local-authority/30UE,Unapportionable Central OHeads,1009,GROW - Commercial Services,Planned Maintenance,20006,Repairs Maintenance & Alts,5005,Union St - Emergency Lighting Remedials NAME REDACTED orders 16985 and 16986 16985 - ALL ROOM NUMBERS CORRESPOND TO DRAWING LIB/A12-11,16/08/2023,0183548,"5,150.00",Revenue,Walker Gabbott Electrical Ltd,83932,,
Chorley Borough Council,http://statistics.data.gov.uk/id/local-authority/30UE,Unapportionable Central OHeads,1009,GROW - Commercial Services,General Repairs - Reactive,20004,Repairs Maintenance & Alts,5005,Reactive Electrical Repair Works @ Town Hall,16/08/2023,0183560,"8,903.21",Revenue,Walker Gabbott Electrical Ltd,83932,,
Chorley Borough Council,http://statistics.data.gov.uk/id/local-authority/30UE,Unapportionable Central OHeads,1009,GROW - Commercial Services,General Repairs - Reactive,20004,Repairs Maintenance & Alts,5005,Reactive Electrical Repair Works @ Town Hall,23/08/2023,0183561,605.00,Revenue,Walker Gabbott Electrical Ltd,83932,,
Chorley Borough Council,http://statistics.data.gov.uk/id/local-authority/30UE,Regulatory Services,1048,GROW - Commercial Services,Water - Metered Supplies,20022,Water Services,5009,18/4 to 17/7/23,02/08/2023,0183226,"1,680.17",Revenue,WaterPlus 4083536947 Toilets Market Place Chorley,85561,,
Chorley Borough Council,http://statistics.data.gov.uk/id/local-authority/30UE,Unapportionable Central OHeads,1009,GROW - Commercial Services,Water - Metered Supplies,20022,Water Services,5009,Stump lane destructor,23/08/2023,0184148,618.24,Revenue,WaterPlus 4083538012 Destructor Stump Lane Chorley,85458,,
Chorley Borough Council,http://statistics.data.gov.uk/id/local-authority/30UE,Homelessness,1075,GROW - Commercial Services,Water - Metered Supplies,20022,Water Services,5009,Cotswold House,09/08/2023,0183602,690.15,Revenue,WaterPlus 4160565113 Cotswold House,85562,,
Chorley Borough Council,http://statistics.data.gov.uk/id/local-authority/30UE,Recreation & Sport,1037,GROW - Commercial Services,Water - Metered Supplies,20022,Water Services,5009,Zero VAT,23/08/2023,0183977,637.39,Revenue,WaterPlus 6002299576 Community Centre Lancaster Wa,84642,,
Chorley Borough Council,http://statistics.data.gov.uk/id/local-authority/30UE,Business Support,1095,GROW - Commercial Services,Stationery,40050,"Printing, Stationery & General",5026,4000 pens @ 35p each net,16/08/2023,0183120,"1,400.00",Revenue,WeBrand4You,68716,,
Chorley Borough Council,http://statistics.data.gov.uk/id/local-authority/30UE,Economic Development,1096,GROW - Commercial Services,Publicity - Advertising,40157,Miscellaneous Expenses,5034,"As per quote: 12817. Re Chorley market pens , , Red albion grip ballpen (full colour print), , Qty: 1000 @ 0.62 per pen",30/08/2023,0184127,620.00,Revenue,WeBrand4You,68716,,
Chorley Borough Council,http://statistics.data.gov.uk/id/local-authority/30UE,Homelessness,1075,EARL - Communities,Grants - Tenant Participation,40142,Grants and Subscriptions,5031,,23/08/2023,0183873,500.00,Revenue,William Quinn,85652,,
Chorley Borough Council,http://statistics.data.gov.uk/id/local-authority/30UE,Development Control,1091,PLAN - Planning & Development,Professional Fees,40063,Services,5027,"Re: 21/00270/FULMAJ - Babylon Lane, Adlington, To cover a review of the transport documents to date and provide a short technical",09/08/2023,0183443,"2,500.00",Revenue,WSP UK Ltd,77416,,
Chorley Borough Council,http://statistics.data.gov.uk/id/local-authority/30UE,Street Cleansing,1049,CUST - Customer & Digital,Provn Of Street Furniture,20057,Grounds Maintenance Costs,5013,As per Sales quotation 9000005384,23/08/2023,0183677,"2,272.70",Revenue,Wybone Ltd,18097,,
Chorley Borough Council,http://statistics.data.gov.uk/id/local-authority/30UE,Business Support,1095,GROW - Commercial Services,General Repairs - Reactive,20004,Repairs Maintenance & Alts,5005,Reactive Auto Doors and Shutters Repair Works @ Strawberry Fields,30/08/2023,0184081,815.50,Revenue,Yates Entrance Solutions Ltd,84714,,
Chorley Borough Council,http://statistics.data.gov.uk/id/local-authority/30UE,Business Support,1095,GROW - Commercial Services,Electricity,20013,Energy Costs,5006,,09/08/2023,0182896,672.08,Revenue,YGP Yorkshire Gas and Power,89389,,
Chorley Borough Council,http://statistics.data.gov.uk/id/local-authority/30UE,Business Support,1095,GROW - Commercial Services,Electricity,20013,Energy Costs,5006,,09/08/2023,0182901,"1,912.17",Revenue,YGP Yorkshire Gas and Power,89389,,
Chorley Borough Council,http://statistics.data.gov.uk/id/local-authority/30UE,Business Support,1095,GROW - Commercial Services,Electricity,20013,Energy Costs,5006,,09/08/2023,0182904,550.00,Revenue,YGP Yorkshire Gas and Power,89389,,
Chorley Borough Council,http://statistics.data.gov.uk/id/local-authority/30UE,Business Support,1095,GROW - Commercial Services,Electricity,20013,Energy Costs,5006,10/5 to 30/7/23,09/08/2023,0183156,609.60,Revenue,YGP Yorkshire Gas and Power,89389,,
Chorley Borough Council,http://statistics.data.gov.uk/id/local-authority/30UE,Business Support,1095,GROW - Commercial Services,Electricity,20013,Energy Costs,5006,Lower VAT,09/08/2023,0183157,877.35,Revenue,YGP Yorkshire Gas and Power,89389,,
Chorley Borough Council,http://statistics.data.gov.uk/id/local-authority/30UE,Business Support,1095,GROW - Commercial Services,Electricity,20013,Energy Costs,5006,Lower VAT,09/08/2023,0183158,847.59,Revenue,YGP Yorkshire Gas and Power,89389,,
Chorley Borough Council,http://statistics.data.gov.uk/id/local-authority/30UE,Business Support,1095,GROW - Commercial Services,Electricity,20013,Energy Costs,5006,10/5 to 30/7/23,09/08/2023,0183159,753.55,Revenue,YGP Yorkshire Gas and Power,89389,,
Chorley Borough Council,http://statistics.data.gov.uk/id/local-authority/30UE,Business Support,1095,GROW - Commercial Services,Electricity,20013,Energy Costs,5006,20/12 to 30/12/22,09/08/2023,0183161,"2,548.07",Revenue,YGP Yorkshire Gas and Power,89389,,
Chorley Borough Council,http://statistics.data.gov.uk/id/local-authority/30UE,Business Support,1095,GROW - Commercial Services,Electricity,20013,Energy Costs,5006,,09/08/2023,0183482,"1,047.10",Revenue,YGP Yorkshire Gas and Power,89389,,
Chorley Borough Council,http://statistics.data.gov.uk/id/local-authority/30UE,Business Support,1095,GROW - Commercial Services,Electricity,20013,Energy Costs,5006,VAT,09/08/2023,0183484,"2,132.86",Revenue,YGP Yorkshire Gas and Power,89389,,
Chorley Borough Council,http://statistics.data.gov.uk/id/local-authority/30UE,Business Support,1095,GROW - Commercial Services,Electricity,20013,Energy Costs,5006,,09/08/2023,0183485,"3,892.80",Revenue,YGP Yorkshire Gas and Power,89389,,
Chorley Borough Council,http://statistics.data.gov.uk/id/local-authority/30UE,Business Support,1095,GROW - Commercial Services,Electricity,20013,Energy Costs,5006,,09/08/2023,0183486,818.50,Revenue,YGP Yorkshire Gas and Power,89389,,
